{"text_format":"1","workbook":"xlsx","n_sheets":5,"sheets":["الكشف المطلوب","الكشف المنفذ","استعلام","الدار","اسعار المواد"],"not_rendered":{"charts":0,"images":2,"macros":1,"external_links":0,"defined_names":2,"comments":0,"pivot_tables":0},"unopened":[],"bounds":{"document_bytes":16777216,"sheet_cells":100000,"rows_first":2000,"rows_last":500,"rows_between":2000,"halvings":0,"cell_chars":16384,"cell_head_chars":4096},"cells_cut":0,"cells_raw":0,"read":"whole","date_system":"1900"}

{"sheet":"الكشف المطلوب","index":0,"n_rows":33,"n_cols":141,"rows_kept":33,"cut":false,"hidden":false,"merged":[]}
["رقم الفقرة","المواد والعمل المطلوب","Unit","M1","M2","M5","M8","M10","M11","M12","M13","M14","M17","M18","M20","M22","M24","M25","M27","M28","M29","M30","M31","M32","M33","M34","M35","M36","M37","M38","M39","M40","M41","M42","M47","M52","M53","M54","M59","M61","M62","M63","M64","M65","M68","M69","M73","M79","M80","M89","M93","M94","M96","M98","M100","M101","M103","M104","M105","M106","M107","M108","M109","M110","M111","M112","M113","M114","M115","M116","N2","N7","N8","N9","N15","N16","N17","N18","N20","N21","N22","N23","N24","N26","N28","N29","N37","N41","N43","N46","N47","N51","N52","N53","N54","N55","N57","N58","N59","N61","N62","N63","N64","N65","N67","N68","N69","N70","N71","N74","N76","N77","N78","N79","N80","N81","N82","N83","N84","N85","N86","N87","N91","N92","N97","N100","N104","N105","N106","N108","N111","N112","N113","N114","N116","N117","N118","N119","N120","N121","Total"]
[1,"تجهيز المواد والمعدات والأيدي العاملة اللازمة لتجهيز وتثبيت زجاج سمك 4ملم, ويتضمن العمل ازالة الزجاج المتضرر ورفع الانقاض وكل المتطلبات لانجاز العمل حسب توجيهات المهندس المشرف على أن يتم أستخدام العمال المحليين وبموجب الأجور في السوق المحلية.","m2",7,10,null,null,null,15,null,8,null,null,null,null,null,null,null,5,null,5,null,20,4,null,null,null,4,null,4,null,null,null,null,null,8,6,null,10,10,15,10,20,null,10,8,15,null,null,null,10,null,null,null,null,5,null,null,null,15,null,null,null,null,20,null,null,null,null,null,null,10,5,null,null,null,null,null,null,null,8,10,10,5,null,null,null,null,null,null,null,null,null,null,null,null,10,null,null,null,null,null,null,null,null,null,null,null,null,null,null,null,10,null,15,20,null,null,null,null,null,null,10,null,25,10,5,null,15,null,null,null,null,null,4,null,null,15,null,null,{"$f":"SUM(D2:EJ2)","v":431}]
[2,"تجهيز المواد و المعدات والأيدي العاملة اللازمة لتجهيز وتبديل باب خشب (1*2.1)م كبس صاج وجهين (سمك الطبقة لا يقل عن 5ملم) والحشوة الداخلية لا تقل عن 50%, شاملا العمل ازالة الاطار القديم (الجرجوبة) و تجهيز وتثبيت اطار خشب جديد مع الصبغ ثلاث طبقات للباب والاطار مع تجهيز وتثبيت كيلون منشأ تركي نوعية جيدة, مع اعادة الانهاءات للجدران والارضية كما كانت عليها و حسب توجيهات المهندس المشرف على أن يتم أستخدام العمال المحليين وبموجب الأجور في السوق المحلية.","EA.",2,null,null,null,null,null,null,null,null,null,null,1,null,null,null,null,null,null,null,null,2,null,null,null,null,null,null,null,null,null,null,null,null,null,null,null,4,null,null,null,null,null,null,null,null,null,null,null,null,null,null,null,null,null,null,null,null,null,null,null,null,null,null,null,null,null,null,null,3,null,null,null,null,null,null,null,null,null,null,null,null,null,null,null,null,null,null,null,null,null,null,null,null,null,null,null,3,1,null,null,null,null,null,null,null,null,null,1,null,null,null,null,null,1,null,null,null,null,null,null,null,4,2,null,null,null,null,null,null,null,null,null,null,null,3,null,null,27]
[3,"تجهيز المواد و المعدات والأيدي العاملة اللازمة لتجهيز وتبديل باب خشب (1*2.1)م كبس صاج وجهين (سمك الطبقة لا يقل عن 4ملم) والحشوة الداخلية لا تقل عن 50%, شاملا العمل صيانة الاطار القديم (الجرجوبة) مع الصبغ ثلاث طبقات للباب والاطار مع تجهيز وتثبيت كيلون منشأ تركي نوعية جيدة مع كل المتطلبات و حسب توجيهات المهندس المشرف على أن يتم أستخدام العمال المحليين وبموجب الأجور في السوق المحلية.","EA.",4,null,null,null,null,null,null,null,null,null,null,null,null,null,null,null,null,null,null,null,null,null,null,null,null,null,null,null,null,null,null,1,null,null,null,null,null,4,null,null,2,null,null,null,null,null,null,null,null,null,null,null,2,null,null,null,null,null,null,null,null,null,null,null,null,null,null,null,null,2,null,1,null,null,null,null,null,null,null,null,null,null,null,null,null,null,3,null,null,null,1,null,3,2,null,null,null,null,null,null,null,null,null,null,null,null,null,null,null,null,null,null,null,null,null,null,null,null,null,null,null,null,null,null,null,null,null,null,null,null,null,null,null,null,null,null,null,25]
[4,"تجهيز المواد و المعدات والأيدي العاملة اللازمة لتجهيز وتبديل باب حديد (1*2.1)م كبس وجهين (سمك طبقة البليت لا يقل عن 1.5ملم) مع اطار داخلي انبوب مستطيل (4*7.5 سم) سمك 2 ملم مع استبدال الاطار القديم (الجرجوبة) باطار حديد جديد على أن يتم صبغ الباب والاطار بطلاء مانع الصدأ ومن ثم الصبغ بالطلاء الدهني ثلاث طبقات مع تجهيز وتثبيت كيلون منشأ تركي نوعية جيدة, شاملا العمل اعادة الانهاءات للجدران والارضية كما كانت عليها وكل المتطلبات حسب توجيهات المهندس المشرف على أن يتم أستخدام العمال المحليين وبموجب الأجور في السوق المحلية.","EA.",null,9,2,10,null,8,null,6,5,1,null,null,null,3,null,3,8,null,null,5,null,null,1,1,2,null,null,null,1,4,null,2,null,10,null,3,2,1,null,1,null,5,2,4,null,6,null,5,null,null,5,null,null,5,null,null,8,null,2,6,null,7,null,null,2,null,1,null,2,3,4,null,null,null,null,null,null,8,4,4,4,null,1,null,null,null,null,null,1,5,null,null,2,null,null,null,null,null,4,null,null,4,1,null,null,null,null,null,null,4,null,null,null,null,null,null,2,null,null,2,1,1,null,2,null,5,null,1,1,null,1,1,1,null,null,4,null,219]
[5,"تجهيز المواد والمعدات والأيدي العاملة اللازمة لتجهيز وتثبيت باب PVC بلاستك (0.9*2)م مع الاطار وتثبيت كيلون منشأ تركي نوعية جيدة وكل المتطلبات لانجاز العمل وحسب توجيهات المهندس المشرف على أن يتم أستخدام العمال المحليين وبموجب الأجور في السوق المحلية.","EA.",null,1,null,1,1,null,null,null,2,null,1,null,1,1,null,1,null,null,2,null,null,null,null,null,null,null,null,null,null,null,null,null,null,null,null,null,null,null,6,1,2,null,null,null,null,null,null,null,null,null,3,null,null,null,null,null,1,null,1,null,null,null,null,null,null,null,null,2,null,1,null,null,null,null,null,null,null,null,null,null,1,null,null,null,null,null,null,null,null,1,null,null,null,null,null,null,null,null,1,null,null,null,null,null,2,null,null,null,5,1,null,null,null,null,null,null,2,null,null,3,null,1,null,null,null,null,4,null,null,null,null,1,null,null,null,null,null,50]
[6,"تجهيز المواد والمعدات والأيدي العاملة اللازمة لتثبيت باب حديد سلايد (3*2)م باستخدام بليت لا يقل سمكه عن 2ملم ومقاطع حديد قياس (4* 7.5)سم سمك 3 ملم على أن يتم صبغ كل الاجزاء بطلاء مانع الصدأ ومن ثم الصبغ بالطلاء الدهني ثلاث طبقات مع تثبيت كيلون منشأ تركي نوعية جيدة, شاملا العمل صب قواعد وأعمدة كونكريتية مسلحة عدد2 ولبخ الأعمدة بمونة الاسمنت والرمل مع النثر أو الصبغ وكل المتطلبات حسب توجيهات المهندس المشرف على أن يتم أستخدام العمال المحليين وبموجب الأجور في السوق المحلية. ","EA.",null,null,null,null,null,null,null,null,null,null,null,null,null,null,null,null,null,null,1,null,null,null,null,null,null,null,null,null,null,null,null,null,null,null,null,null,null,null,null,null,null,1,null,1,null,null,1,null,null,null,1,null,null,null,null,null,null,null,null,null,null,null,null,null,null,null,null,1,null,null,null,null,null,null,null,null,null,null,null,null,null,null,null,null,null,null,null,null,null,null,null,1,null,null,null,null,null,null,null,null,null,1,null,null,null,null,null,null,null,1,1,null,null,null,null,null,1,1,null,null,null,null,null,null,null,null,null,null,null,null,null,null,null,null,null,1,null,13]
[7,"تجهيز المواد والمعدات والعمل لتجهيز وتثبيت شبابيك حديد مع كتائب الحماية,على أن يتم صبغ الشباك بطلاء مانع الصدأ ومن ثم الصبغ بالطلاء الدهني ثلاث طبقات مع تثبيت زجاج 4 ملم واقفال نوعية جيدة ومشبك مانع ذباب للفتحات المتحركة وكل المتطلبات من اعمال انهاءات الجدار من الداخل والخارج حسب الموقع بعد تثبيت الشباك وحسب توجيهات المهندس المشرف على أن يتم أستخدام العمال المحليين وبموجب الأجور في السوق المحلية.","m2",2,null,null,null,null,2,null,null,3,null,2,null,4,null,null,null,null,null,null,2,null,null,2,null,null,null,1,null,2,null,null,null,3,null,null,null,null,null,null,null,null,null,null,null,null,null,null,null,null,null,null,null,null,null,null,null,null,null,null,null,null,null,null,null,3,null,2,null,null,null,null,3,null,null,null,null,null,null,null,null,null,null,2,null,null,null,null,null,3,9,8,null,null,null,null,null,null,null,null,null,null,null,3,null,null,null,null,null,null,null,null,null,null,null,null,null,null,null,null,null,3,3,null,null,null,null,null,null,null,null,3,2,2,null,null,1,null,70]
[8,"تجهيز المواد والمعدات والعمل لتجهيز وتثبيت شبابيك (PVC)بلاستك مع تثبيت زجاج 4 ملم واقفال نوعية جيدة ومشبك مانع ذباب للفتحات المتحركة وكل المتطلبات وحسب توجيهات المهندس المشرف على أن يتم أستخدام العمال المحليين وبموجب الأجور في السوق المحلية.","m2",null,null,null,null,null,null,null,null,null,null,null,null,null,null,2,null,null,null,null,null,null,null,null,null,null,null,null,null,null,null,null,null,null,null,null,null,null,null,null,null,null,null,null,null,null,null,null,null,null,null,null,null,null,null,null,null,null,null,null,null,null,null,null,null,null,null,null,null,null,null,null,null,null,null,null,null,null,null,null,null,null,null,null,null,null,null,null,null,null,null,null,null,null,null,null,null,null,null,null,null,null,null,null,null,null,null,null,null,null,null,null,null,null,null,null,null,null,null,null,null,null,null,null,null,null,null,null,null,null,null,null,null,null,null,null,null,null,2]
[9,"تجهيز المواد والمعدات والأيدي العاملة اللازمة لاعمال انهاءات السقوف والجدران الداخلية, شاملا العمل قشط وازالة المساحات المتضررة ورفع الانقاض واعادة السطار والبياض من جديد بالجص والبورك وكل المتطلبات لانجاز العمل حسب توجيهات المهندس المشرف على أن يتم أستخدام العمال المحليين وبموجب الأجور في السوق المحلية.","m2",50,null,175,100,80,56,null,null,140,60,200,150,80,60,125,220,60,60,70,40,150,null,60,null,null,null,null,130,75,null,null,100,null,null,null,140,null,220,50,200,null,100,125,null,null,150,null,160,null,130,null,null,100,null,140,250,100,100,50,100,200,200,130,75,70,null,75,100,200,250,60,75,null,null,170,75,100,null,125,null,175,50,null,null,null,200,100,100,160,20,200,null,null,150,100,135,200,60,175,110,90,125,75,160,null,null,110,170,100,50,null,100,null,100,null,100,70,100,null,125,null,null,250,300,100,200,null,150,50,null,50,75,75,null,200,80,150,11351]
[10,"تجهيز المواد والمعدات والأيدي العاملة اللازمة لاعمال اللبخ بمونة السمنت والرمل بنسبة (3:1), شاملا العمل قشط وازالة المساحات المتضررة ورفع الانقاض واعادة اللبخ من جديد وحسب توجيهات المهندس المشرف على أن يتم أستخدام العمال المحليين وبموجب الأجور في السوق المحلية.","m2",null,null,null,120,null,150,200,null,null,130,150,null,20,null,150,null,null,null,150,150,null,null,null,null,null,null,null,null,null,null,null,75,null,null,150,null,null,null,null,null,null,null,null,null,null,50,null,null,null,65,null,150,75,70,40,null,null,150,null,null,null,null,150,20,null,null,null,null,null,null,null,null,null,null,null,null,null,70,null,150,null,150,null,null,null,null,null,null,null,125,null,null,null,150,null,null,150,150,null,null,150,null,null,150,250,null,150,null,null,null,150,200,null,null,null,null,null,null,100,null,65,null,null,null,null,null,null,null,null,100,null,null,null,100,null,50,45,4670]
[11,"تجهيز المواد و المعدات والأيدي العاملة اللازمة لصبغ السقوف والجدران بالاصباغ البلاستيكية ثلاث طبقات, شاملا العمل اعمال التصليحات والمعالجة والطلاء الاساس وكل المتطلبات حسب توجيهات المهندس المشرف على أن يتم أستخدام العمال المحليين وبموجب الأجور في السوق المحلية.","m2",null,200,null,150,250,250,null,null,400,200,null,null,250,500,null,null,null,null,null,500,null,null,null,null,null,null,null,null,null,null,null,null,null,400,null,null,400,null,225,null,null,200,250,null,null,null,null,200,null,null,200,null,null,null,null,null,300,null,null,150,null,null,null,null,null,null,null,null,null,null,null,null,null,null,null,null,null,150,300,null,null,null,null,null,200,400,null,null,null,null,null,null,null,null,null,null,null,null,null,300,null,200,null,380,null,null,null,null,null,300,null,150,null,null,null,null,null,null,null,300,null,null,null,null,null,null,null,null,null,null,null,null,null,null,null,null,null,7705]
[12,"تجهيز المواد والمعدات والأيدي العاملة اللازمة لبناء ستارة باستخدام بلوك مجوف قياس (15*20*40)سم ومونة السمنت والرمل (3:1) شاملا العمل ازالة الاجزاء المتضررة ورفع الانقاض وكل المتطلبات لانجاز العمل وحسب توجيهات المهندس المشرف على أن يتم أستخدام العمال المحليين وبموجب الأجور في السوق المحلية.","m2",null,null,null,null,null,null,null,null,null,null,null,null,null,null,null,null,null,null,null,null,null,null,null,null,null,null,null,null,null,null,null,null,null,null,null,null,null,null,null,null,null,null,null,null,null,null,null,null,null,null,null,null,null,null,null,null,null,null,null,null,null,null,null,null,null,null,null,null,null,null,null,null,null,null,null,null,null,null,null,null,null,null,null,null,null,null,null,null,null,null,null,null,null,null,null,null,null,null,null,null,null,null,null,null,null,null,27,null,null,null,null,null,null,null,null,null,null,null,null,null,null,null,null,null,null,null,null,null,null,null,null,null,null,null,null,null,null,27]
[13,"تجهيز المواد والمعدات والأيدي العاملة اللازمة لبناء الجدران باستخدام بلوك مجوف قياس (20*20*40)سم ومونة السمنت والرمل (3:1) شاملا العمل ازالة الاجزاء المتضررة ورفع الانقاض وكل المتطلبات لانجاز العمل وحسب توجيهات المهندس المشرف على أن يتم أستخدام العمال المحليين وبموجب الأجور في السوق المحلية.","m2",null,null,null,null,null,null,null,null,null,null,null,10,null,null,null,null,null,null,null,null,null,null,null,null,null,null,null,40,80,80,null,null,null,null,64,30,null,null,3,null,null,null,null,null,null,null,85,null,null,null,null,100,null,null,40,null,null,null,null,null,null,null,null,null,null,null,80,null,null,null,null,55,null,null,null,null,null,null,null,80,null,null,50,null,null,null,null,null,55,25,null,50,80,null,null,null,null,null,null,null,null,35,50,null,null,50,null,null,null,12,85,null,null,null,45,null,40,50,35,null,60,40,null,null,null,null,60,null,null,null,60,37,85,null,null,null,null,1751]
[14,"تجهيز المواد والمعدات والأيدي العاملة اللازمة لبناء جدران حجر سمك 30سم باستخدام مونة السمنت والرمل (3:1) شاملا العمل ازالة الاجزاء المتضررة ورفع الانقاض وكل المتطلبات لانجاز العمل وحسب توجيهات المهندس المشرف على أن يتم أستخدام العمال المحليين وبموجب الأجور في السوق المحلية.","m2",null,null,null,null,null,null,null,null,null,null,null,null,null,null,10,null,null,null,null,null,null,null,50,null,null,null,null,null,null,null,10,null,null,null,null,null,null,null,null,null,null,null,null,null,null,50,null,null,null,null,null,null,null,null,null,null,null,null,null,null,null,null,null,null,50,null,null,null,null,null,null,null,null,null,null,null,null,null,null,null,null,null,null,null,null,null,null,null,null,null,null,null,null,null,null,null,null,40,null,null,null,null,null,null,null,null,null,50,null,null,null,null,null,40,null,null,null,null,null,null,null,null,null,null,null,null,null,50,40,null,null,null,null,null,null,null,null,390]
[15,"تجهيز المواد والمعدات والأيدي العاملة اللازمة لاعمال تغليف سيراميك جدران وارضيات باستخدام مونة السمنت والرمل (3:1), شاملا العمل قلع الطبقات الحالية المتضررة ورفع الانقاض وتغليف سيراميك جديد وكل المتطلبات لانجاز العمل حسب توجيهات المهندس المشرف على أن يتم أستخدام العمال المحليين وبموجب الأجور في السوق المحلية.","m2",50,null,null,null,null,null,null,null,null,null,30,null,null,null,null,null,null,null,55,null,95,null,null,null,null,null,null,null,null,null,null,null,72,null,null,20,null,null,null,null,75,null,62,60,null,null,null,null,null,null,60,null,50,null,60,null,40,null,45,null,null,null,null,70,null,null,null,100,null,60,null,null,null,null,null,null,null,null,null,null,null,null,null,null,null,null,70,null,null,35,null,null,60,50,null,null,null,null,25,70,70,30,null,null,60,null,null,null,45,45,null,null,null,null,null,null,20,null,null,60,null,null,null,null,null,null,null,null,null,null,null,null,null,null,null,null,null,1644]
[16,"تجهيز المواد والمعدات والأيدي العاملة اللازمة لاعمال تغليف ارضيات بالكاشي الموزائيك باستخدام مونة السمنت والرمل (3:1), شاملا العمل قلع الطبقات الحالية المتضررة ورفع الانقاض وكل المتطلبات لانجاز العمل و حسب توجيهات المهندس المشرف على أن يتم أستخدام العمال المحليين وبموجب الأجور في السوق المحلية.","m2",null,null,null,null,null,null,null,null,null,null,null,null,null,null,null,null,null,null,null,null,null,null,null,null,null,null,null,null,null,null,null,null,null,null,null,null,null,null,null,null,null,null,null,null,null,null,null,null,null,null,null,null,null,null,null,null,null,null,null,null,null,null,null,null,null,null,null,null,null,null,null,null,null,null,null,null,null,null,null,null,null,null,null,null,null,null,null,null,null,null,null,null,null,null,null,null,null,null,null,null,null,null,null,null,null,null,null,null,null,null,null,null,null,null,25,null,null,null,null,null,null,null,null,null,null,null,null,null,null,null,null,null,null,null,null,null,null,25]
[17,"تجهيز المواد والمعدات والأيدي العاملة اللازمة لصب كونكريت مسلح, (12 ملم) حديد التسليح, (15*15 سم) المسافة البينية بين القضبان, سمك الصب (20 سم) للأجزاء المتضررة من السقوف بنسبة خلط (3:1.5:1) مع اضافة مادة SBR لربطه مع الكونكريت القديم شاملا العمل قلع المساحات المتضررة ورفع الانقاض وكل المتطلبات لانجاز العمل حسب توجيهات المهندس المشرف على أن يتم أستخدام العمال المحليين وبموجب الأجور في السوق المحلية.","m2",null,null,null,null,null,null,null,null,null,28,null,null,null,null,null,null,null,null,null,15,null,null,null,null,null,null,null,null,22,20,null,null,null,null,null,null,null,null,45,15,null,null,null,null,null,null,null,null,78,50,null,null,null,null,null,null,null,null,null,null,null,null,25,2,null,null,22,null,20,null,null,22,80,50,50,55,70,null,null,null,null,55,50,null,null,null,null,null,22,null,null,null,null,null,null,15,null,25,null,null,15,null,22,null,null,null,null,25,null,4,null,null,50,30,null,null,3,null,40,null,20,20,null,null,70,30,30,null,null,70,null,35,22,70,40,null,null,1432]
[18,"تجهيز المواد والمعدات والعمل لتثبيت سقوف وقواطع من الساندويج بنل (5سم) مع هيكل حديد من انبوب مقطع مستطيل بوري شخاطة (4*7.5)سم سمك 2ملم شاملا العمل صبغ الهيكل بطلاء مانع الصدأ وطبقتين من الطلاء الدهني وكل المتطلبات لانجاز العمل حسب توجيهات المهندس المشرف على أن يتم أستخدام العمال المحليين وبموجب الأجور في السوق المحلية.","m2",24,18,25,null,null,null,null,null,null,null,null,45,null,null,25,25,null,80,null,null,null,55,40,70,60,60,60,null,null,null,90,20,null,null,null,null,null,null,null,null,null,null,null,null,null,null,null,null,null,null,null,null,null,25,null,null,null,18,null,null,null,null,20,null,40,80,null,null,null,null,null,null,null,null,null,null,null,null,null,null,15,null,null,null,100,null,null,null,null,null,null,null,null,null,null,null,null,null,null,null,null,null,null,null,null,null,null,null,null,null,null,null,null,null,null,null,null,null,null,null,null,null,null,null,null,null,null,25,25,null,25,null,null,null,null,null,16,1086]
[19,"تجهيز المواد والمعدات والأيدي العاملة اللازمة لصب خرسانة سمك 10سم للأرضيات باستخدام السمنت المقاوم للاملاح ونسبة خلط (4:2:1), شاملا العمل ازالة الطبقات المتضررة و رفع الانقاض ثم رصف طبقة كسر حجر او جلمود مع الحدل الجيد قبل الصب وكل المتطلبات لانجاز العمل حسب توجيهات المهندس المشرف على أن يتم أستخدام العمال المحليين وبموجب الأجور في السوق المحلية.","m2",65,null,null,null,75,75,null,80,100,null,null,null,null,null,null,null,60,null,null,null,null,null,null,null,null,null,null,18,null,50,null,null,null,null,null,60,null,100,null,null,null,null,null,null,null,null,null,null,null,null,null,null,null,null,null,null,null,null,null,null,null,null,null,null,null,null,null,null,60,null,null,null,null,null,20,24,null,null,null,null,25,null,null,null,null,null,null,null,null,40,null,null,null,null,null,null,null,null,null,100,null,null,null,null,null,50,null,null,150,null,null,null,null,null,null,null,null,null,null,null,18,80,null,40,null,null,null,20,20,null,20,null,null,null,null,null,null,1350]
[20,"تجهيز المواد والمعدات والأيدي العاملة اللازمة لاعمال التسطيح باستخدام الشتايكر قياس (80*80*4)سم, شاملا العمل ازالة التسطيح القديم ورفع الانقاض وتنظيف السطح ثم الطلاء بمانع الرطوبة (الفلانكوت) وطبقتين من القير وطبقة من النايلون والتهوير بالتراب النهري والتطبيق بالشتايكر مع ملئ الفواصل بالماستك مع مراعاة ميول انحدار مياه الأمطار وكل ما يتطلبه العمل حسب توجيهات المهندس المشرف على أن يتم أستخدام العمال المحليين وبموجب الأجور في السوق المحلية.","m2",null,null,null,null,null,null,100,null,null,null,null,null,null,null,null,null,null,null,null,null,null,null,null,null,null,null,null,null,null,null,null,null,null,null,null,null,null,null,null,null,null,null,null,null,164,null,null,null,null,null,null,null,null,null,null,null,null,null,null,null,null,null,null,null,null,null,null,null,null,null,75,null,null,null,null,null,null,null,null,null,null,null,null,150,null,null,null,150,null,null,40,null,null,null,150,null,null,null,null,null,null,null,null,null,null,null,null,null,null,null,null,null,null,null,null,150,null,null,null,null,null,null,null,null,null,null,null,null,null,null,null,null,null,null,null,null,null,979]
[21,"تجهيز المواد والمعدات والأيدي العاملة اللازمة لبناء مجموعة صحية خارجية بمساحة (3 م2) صافية من الداخل, وتشمل أعمال حفر وصب الاسس بالخرسانة المسلحة وبناء الجدران بالبلوك المجوف (20*20*40)سم بارتفاع صافي (2.60 سم) وصب سقف كونكريتي مسلح والانهاءات بالسيراميك من الداخل (الجدران والارضيه) واللبخ والنثر من الخارج مع تثبيت باب وهوائية PVC واعمال تاسيسات الماء والكهرباء والمجاري والقاعده الشرقية وخلاط كير دوش تركي المنشأ, شاملا العمل ازالة المجموعة الصحية القديمة ورفع الانقاض وكافة المتطلبات حسب توجيهات المهندس المشرف على أن يتم أستخدام العمال المحليين وبموجب الأجور في السوق المحلية.","EA.",null,null,1,null,1,null,null,1,null,null,null,null,1,1,null,null,1,null,null,null,null,1,null,1,1,1,1,1,null,null,null,1,1,1,1,null,1,null,null,1,1,1,null,1,null,null,1,1,null,null,null,null,1,1,null,1,null,1,1,1,1,null,null,1,null,1,null,null,null,null,1,null,null,1,null,null,null,1,1,null,1,null,null,null,null,1,1,null,null,null,1,1,null,null,null,1,null,null,1,null,null,null,null,null,null,1,1,null,null,null,null,1,1,null,1,null,null,1,null,null,null,null,1,null,null,null,null,null,null,null,null,null,null,null,null,1,1,52]
[22,"تجهيز المواد والمعدات والأيدي العاملة اللازمة لتجهيز وتثبيت خزان ماء بليت مغلون حجم (1000 لتر) كيج 16 مع الطوافة وكل المتطلبات لانجاز العمل وثتبيته على قواعد كونكريتية عدد4 وكافة التأسيسات الصحية اللازمة لربطه مع شبكة الماء الخارجية والداخلية وحسب توجيهات المهندس المشرف على أن يتم أستخدام العمال المحليين وبموجب الأجور في السوق المحلية.","EA.",null,1,1,1,1,null,null,1,null,null,1,null,1,1,1,null,1,null,null,null,null,1,null,1,1,1,1,1,null,null,2,1,1,1,null,1,1,1,null,null,null,1,null,null,null,1,null,1,null,null,1,null,null,1,null,1,1,null,1,1,null,null,null,1,null,null,null,1,1,null,null,null,null,1,null,null,null,null,1,2,1,null,null,null,null,1,1,null,null,null,null,1,null,null,null,null,1,null,2,null,null,1,null,null,1,1,null,null,null,null,null,null,null,null,2,null,1,1,null,1,null,null,null,null,null,null,null,null,null,null,null,null,null,null,null,1,1,57]
[23,"تجهيز المواد والمعدات والأيدي العاملة اللازمة لتجهيز وتركيب وتأسيس مغسلة سيراميك قياس(40*60)سم مع المسند والخلاط تركي المنشأ والأقفال وكافة الملحقات لانجاز العمل وحسب توجيهات المهندس المشرف على أن يتم أستخدام العمال المحليين وبموجب الأجور في السوق المحلية.","EA.",null,1,null,1,1,null,null,1,null,1,1,null,1,1,1,null,1,null,null,null,null,1,1,1,1,1,1,1,null,null,1,1,1,1,null,null,1,null,null,null,null,1,null,null,null,null,null,1,null,null,null,null,null,1,null,1,null,null,1,null,null,null,null,null,null,null,null,1,null,null,null,null,null,1,null,null,null,null,1,1,null,null,null,null,null,1,1,null,null,null,null,1,null,null,null,null,1,null,null,null,null,null,null,null,null,1,null,null,null,null,null,null,null,null,2,null,1,null,null,1,null,null,null,null,null,null,null,null,null,null,null,null,null,null,null,1,null,41]
[24,"تجهيز المواد والمعدات والأيدي العاملة اللازمة لتجهيز وتركيب وتأسيس حنفية ماء كروم 12ملم (1/2 انج) منشأ تركي مع كافة الملحقات لانجاز العمل وحسب توجيهات المهندس المشرف على أن يتم أستخدام العمال المحليين وبموجب الأجور في السوق المحلية.","EA.",null,null,null,null,null,null,null,null,null,null,null,null,null,null,2,null,null,null,null,null,null,null,null,null,2,null,2,2,null,null,2,null,null,null,null,null,null,null,null,null,null,null,null,null,null,null,null,null,null,null,null,null,null,null,null,null,null,null,2,null,null,null,null,null,null,null,null,null,null,null,null,null,null,null,null,null,null,null,null,null,null,null,null,null,null,null,null,null,null,null,null,null,null,null,null,null,null,null,null,null,null,null,null,null,null,null,null,null,null,null,null,null,null,null,5,null,null,null,null,null,null,null,null,null,null,null,null,null,null,null,null,null,null,null,null,null,null,17]
[25,"تجهيز المواد والمعدات والأيدي العاملة اللازمة لتجهيز وتركيب وربط انابيب (PPR) قطر 18ملم (3/4 انج) لتوصيلات الماء مع كافة ملحقات التوصيل اللازمة لانجاز العمل وحسب توجيهات المهندس المشرف على أن يتم أستخدام العمال المحليين وبموجب الأجور في السوق المحلية.","ML",null,null,null,null,null,null,null,null,null,null,null,null,null,null,20,null,null,null,null,null,null,null,null,null,12,null,null,12,null,null,12,null,null,null,null,null,null,null,null,null,null,null,null,null,null,null,null,null,null,null,null,null,null,null,null,null,null,null,15,null,null,null,null,null,null,null,null,null,null,null,null,null,null,null,null,null,null,null,null,null,null,null,null,null,null,null,null,null,null,null,null,null,null,null,null,null,null,null,null,null,null,null,null,null,null,null,null,null,null,null,null,null,null,null,15,null,null,null,null,null,null,null,null,null,null,null,null,null,null,null,null,null,null,null,null,null,null,86]
[26,"تجهيز المواد والمعدات والأيدي العاملة اللازمة لتجهيز وتركيب وتأسيس انابيب مجاري بلاستك 100ملم (4 انج) شاملا العمل اعمال الحفر والتركيب والتغليف بالخرسانة مع جميع التراكيب وملحقات التوصيل اللازمة لانجاز العمل ورفع الانقاض وحسب توجيهات المهندس المشرف على أن يتم أستخدام العمال المحليين وبموجب الأجور في السوق المحلية.","ML",15,null,null,null,null,null,null,null,null,null,null,null,null,null,null,null,null,null,null,null,null,null,null,null,null,null,null,null,null,null,null,null,null,null,null,null,null,null,null,null,null,null,null,null,null,null,null,null,null,null,null,null,null,null,null,null,null,null,null,null,null,null,null,null,null,null,null,null,null,null,null,null,null,null,null,null,null,null,null,null,null,null,null,null,null,null,null,null,null,null,null,null,null,null,null,null,null,null,null,null,null,null,null,null,null,null,null,null,null,12,null,null,null,null,null,null,null,null,null,null,null,null,null,null,null,null,null,null,null,null,null,null,null,null,null,null,null,27]
[27,"تجهيز المواد والمعدات والأيدي العاملة اللازمة لتجهيز وصب مانهولات مجاري شاملا العمل اعمال الحفر والصب والطلاء بمانع الرطوبة (الفلانكوت) والدفن مع تركيب غطاء بلاستيكي قياس (30*30)سم مع كافة الملحقات لانجاز العمل وحسب توجيهات المهندس المشرف على أن يتم أستخدام العمال المحليين وبموجب الأجور في السوق المحلية.","EA.",null,null,null,null,null,null,null,null,null,null,null,null,null,null,null,null,null,null,null,null,null,null,null,null,null,null,null,null,null,null,null,null,null,null,null,null,null,null,null,null,null,null,null,null,null,null,null,null,null,null,null,null,null,null,null,null,null,null,null,15,null,null,null,null,null,null,null,null,null,null,null,null,null,null,null,null,null,null,null,null,null,null,null,null,null,null,null,null,null,null,null,null,null,null,null,null,null,null,null,null,null,null,null,null,null,null,null,null,null,null,null,null,null,null,null,null,null,null,null,null,null,null,null,null,null,null,null,null,null,null,null,null,null,null,null,null,null,15]
[28,"تجهيز المواد والمعدات والأيدي العاملة اللازمة لتجهيز وتثبيت وتسليك وربط وتشغيل مصباح انارة 70 واط باستخدام اسلاك حجم (2*2.5ملم2), شاملا العمل كل المتطلبات اللازمة  حسب توجيهات المهندس المشرف على أن يتم أستخدام العمال المحليين وبموجب الأجور في السوق المحلية.","EA.",null,20,6,20,null,null,null,20,null,11,null,null,10,null,null,10,null,null,4,null,5,8,null,null,null,null,6,5,2,null,3,null,6,null,null,10,10,20,null,null,null,null,5,null,null,null,null,4,null,null,null,null,null,null,null,5,20,null,null,15,20,30,null,6,null,null,3,null,10,null,null,3,null,null,5,10,null,15,10,null,null,null,null,null,null,null,null,null,3,null,null,null,null,8,null,10,15,null,null,null,null,null,null,20,null,null,null,null,null,null,null,null,null,null,null,null,null,null,null,10,5,null,6,null,null,null,null,5,5,null,5,5,3,null,null,null,null,437]
[29," تجهيز المواد والمعدات والأيدي العاملة اللازمة لتجهيز وتثبيت وتسليك وربط وتشغيل مأخذ قدرة 13 أمبير باستخدام اسلاك حجم (2*2.5ملم2), شاملا العمل كل المتطلبات اللازمة  حسب توجيهات المهندس المشرف على أن يتم أستخدام العمال المحليين وبموجب الأجور في السوق المحلية.","EA.",null,20,6,20,null,null,null,10,null,7,null,null,10,null,null,10,null,null,4,null,5,4,null,null,null,null,6,5,3,null,3,null,6,null,null,10,10,10,null,null,null,null,5,null,null,null,null,4,null,null,null,null,null,null,null,5,20,null,null,null,20,30,null,6,null,null,3,null,10,null,null,3,null,null,5,10,null,15,10,null,null,null,null,null,null,null,null,null,3,null,null,null,null,8,null,10,15,null,null,null,null,null,null,20,null,null,null,null,null,null,null,null,null,null,null,null,null,null,null,10,10,null,6,null,null,null,null,5,5,null,5,5,3,null,null,null,null,400]
[30," تجهيز المواد والمعدات والأيدي العاملة اللازمة لتجهيز وتثبيت وتسليك وربط وتشغيل سخان ماء كهربائي سعة 160 لتر باستخدام اسلاك حجم (2*4ملم2) وقاطع كهربائي 60 أمبير, شاملا العمل كل التراكيب والملحقات اللازمة لانجاز العمل حسب توجيهات المهندس المشرف على أن يتم أستخدام العمال المحليين وبموجب الأجور في السوق المحلية.","EA.",null,1,null,null,null,null,null,null,null,null,null,null,1,null,null,null,1,null,null,null,null,null,null,null,1,null,1,null,null,null,null,1,null,null,null,null,1,null,null,null,null,1,null,null,null,null,null,1,null,null,null,null,null,null,null,1,null,null,1,1,null,null,null,null,null,null,null,null,null,null,null,null,null,null,null,null,null,null,null,null,null,null,null,null,null,null,null,null,null,null,null,1,null,null,null,null,null,null,1,null,null,null,1,null,null,1,null,null,null,null,null,null,null,null,1,null,null,null,null,null,null,null,null,null,null,null,null,null,null,null,null,null,null,null,null,null,null,17]
[31," تجهيز المواد والمعدات والأيدي العاملة اللازمة لتجهيز وتثبيت وتسليك وربط وتشغيل لوحة توزيع كهربائية تحتوي على قاطع رئيسي 80 امبير و 6 قواطع فرعية (10-32) امبير, شاملا العمل كل التراكيب والملحقات اللازمة لانجاز العمل حسب توجيهات المهندس المشرف على أن يتم أستخدام العمال المحليين وبموجب الأجور في السوق المحلية.","EA.",null,1,1,1,null,null,null,null,null,null,null,null,null,null,null,1,null,1,null,null,null,1,null,null,null,null,null,1,null,null,null,null,null,null,null,null,1,null,null,null,null,null,null,null,null,null,null,null,null,null,null,null,null,null,null,1,null,null,null,null,null,1,null,1,null,null,null,null,1,null,null,null,null,null,null,null,null,1,null,null,null,null,null,null,null,null,null,null,null,null,null,null,null,1,null,null,1,null,null,null,null,null,null,null,null,null,null,null,null,null,null,null,null,null,null,null,null,null,null,1,null,null,1,null,null,null,null,null,null,null,null,null,null,null,null,null,null,17]
[32," تجهيز المواد والمعدات والأيدي العاملة اللازمة لتجهيز وتثبيت وتسليك وربط كيبل كهربائي (2*10ملم2), شاملا العمل كل التراكيب والملحقات اللازمة لانجاز العمل حسب توجيهات المهندس المشرف على أن يتم أستخدام العمال المحليين وبموجب الأجور في السوق المحلية.","ML",null,null,null,1,null,null,null,null,null,null,null,null,null,null,null,35,null,null,null,null,null,null,null,null,null,null,null,null,null,null,null,null,null,null,null,null,null,null,null,null,null,null,null,null,null,null,null,null,null,null,null,null,null,null,null,null,null,null,null,null,null,null,null,null,null,null,null,null,null,null,null,null,null,null,null,null,null,null,null,null,null,null,null,null,null,null,null,null,null,null,null,null,null,null,null,null,null,null,null,null,null,null,null,null,null,null,null,null,null,null,null,null,null,null,null,null,null,null,null,null,null,null,null,null,null,null,null,null,50,null,null,null,null,null,null,null,null,86]

{"sheet":"الكشف المنفذ","index":1,"n_rows":33,"n_cols":141,"rows_kept":33,"cut":false,"hidden":false,"merged":[]}
["ت","Item Description","Unit","M1","M2","M5","M8","M10","M11","M12","M13","M14","M17","M18","M20","M22","M24","M25","M27","M28","M29","M30","M31","M32","M33","M34","M35","M36","M37","M38","M39","M40","M41","M42","M47","M52","M53","M54","M59","M61","M62","M63","M64","M65","M68","M69","M73","M79","M80","M89","M93","M94","M96","M98","M100","M101","M103","M104","M105","M106","M107","M108","M109","M110","M111","M112","M113","M114","M115","M116","N2","N7","N8","N9","N15","N16","N17","N18","N20","N21","N22","N23","N24","N26","N28","N29","N37","N41","N43","N46","N47","N51","N52","N53","N54","N55","N57","N58","N59","N61","N62","N63","N64","N65","N67","N68","N69","N70","N71","N74","N76","N77","N78","N79","N80","N81","N82","N83","N84","N85","N86","N87","N91","N92","N97","N100","N104","N105","N106","N108","N111","N112","N113","N114","N116","N117","N118","N119","N120","N121","Total"]
[1,"تجهيز المواد والمعدات والأيدي العاملة اللازمة لتجهيز وتثبيت زجاج سمك 4ملم, ويتضمن العمل ازالة الزجاج المتضرر ورفع الانقاض وكل المتطلبات لانجاز العمل حسب توجيهات المهندس المشرف على أن يتم أستخدام العمال المحليين وبموجب الأجور في السوق المحلية.","m2",null,5,null,null,null,8,null,null,null,null,null,null,null,null,null,null,null,null,null,null,null,null,null,null,null,null,null,null,null,null,null,null,null,null,null,null,null,null,null,null,null,null,null,null,null,null,null,null,null,null,null,null,null,null,null,null,null,null,null,null,null,null,null,null,null,null,null,null,null,null,null,null,null,null,null,null,null,null,null,null,null,null,null,null,null,null,null,null,null,null,null,null,null,null,null,null,null,null,null,null,null,null,null,null,null,null,null,null,null,null,null,null,null,null,null,null,null,null,null,null,null,null,null,null,null,null,null,null,null,null,null,null,null,null,null,null,null,{"$f":"SUM(D2:EJ2)","v":13}]
[2,"تجهيز المواد و المعدات والأيدي العاملة اللازمة لتجهيز وتبديل باب خشب (1*2.1)م كبس صاج وجهين (سمك الطبقة لا يقل عن 5ملم) والحشوة الداخلية لا تقل عن 50%, شاملا العمل ازالة الاطار القديم (الجرجوبة) و تجهيز وتثبيت اطار خشب جديد مع الصبغ ثلاث طبقات للباب والاطار مع تجهيز وتثبيت كيلون منشأ تركي نوعية جيدة, مع اعادة الانهاءات للجدران والارضية كما كانت عليها و حسب توجيهات المهندس المشرف على أن يتم أستخدام العمال المحليين وبموجب الأجور في السوق المحلية.","EA.",null,null,null,null,null,null,null,null,null,null,null,null,null,null,null,null,null,null,null,null,null,null,null,null,null,null,null,null,null,null,null,null,null,null,null,null,null,null,null,null,null,null,null,null,null,null,null,null,null,null,null,null,null,null,null,null,null,null,null,null,null,null,null,null,null,null,null,null,null,null,null,null,null,null,null,null,null,null,null,null,null,null,null,null,null,null,null,null,null,null,null,null,null,null,null,null,null,null,null,null,null,null,null,null,null,null,null,null,null,null,null,null,null,null,null,null,null,null,null,null,null,null,null,null,null,null,null,null,null,null,null,null,null,null,null,null,null,0]
[3,"تجهيز المواد و المعدات والأيدي العاملة اللازمة لتجهيز وتبديل باب خشب (1*2.1)م كبس صاج وجهين (سمك الطبقة لا يقل عن 4ملم) والحشوة الداخلية لا تقل عن 50%, شاملا العمل صيانة الاطار القديم (الجرجوبة) مع الصبغ ثلاث طبقات للباب والاطار مع تجهيز وتثبيت كيلون منشأ تركي نوعية جيدة مع كل المتطلبات و حسب توجيهات المهندس المشرف على أن يتم أستخدام العمال المحليين وبموجب الأجور في السوق المحلية.","EA.",null,null,null,null,null,null,null,null,null,null,null,null,null,null,null,null,null,null,null,null,null,null,null,null,null,null,null,null,null,null,null,null,null,null,null,null,null,null,null,null,null,null,null,null,null,null,null,null,null,null,null,null,null,null,null,null,null,null,null,null,null,null,null,null,null,null,null,null,null,null,null,null,null,null,null,null,null,null,null,null,null,null,null,null,null,null,null,null,null,null,null,null,null,null,null,null,null,null,null,null,null,null,null,null,null,null,null,null,null,null,null,null,null,null,null,null,null,null,null,null,null,null,null,null,null,null,null,null,null,null,null,null,null,null,null,null,null,0]
[4,"تجهيز المواد و المعدات والأيدي العاملة اللازمة لتجهيز وتبديل باب حديد (1*2.1)م كبس وجهين (سمك طبقة البليت لا يقل عن 1.5ملم) مع اطار داخلي انبوب مستطيل (4*7.5 سم) سمك 2 ملم مع استبدال الاطار القديم (الجرجوبة) باطار حديد جديد على أن يتم صبغ الباب والاطار بطلاء مانع الصدأ ومن ثم الصبغ بالطلاء الدهني ثلاث طبقات مع تجهيز وتثبيت كيلون منشأ تركي نوعية جيدة, شاملا العمل اعادة الانهاءات للجدران والارضية كما كانت عليها وكل المتطلبات حسب توجيهات المهندس المشرف على أن يتم أستخدام العمال المحليين وبموجب الأجور في السوق المحلية.","EA.",null,null,null,null,null,null,null,null,null,null,null,null,null,null,null,null,null,null,null,null,null,null,null,null,null,null,null,null,null,null,null,null,null,null,null,null,null,null,null,null,null,null,null,null,null,null,null,null,null,null,null,null,null,null,null,null,null,null,null,null,null,null,null,null,null,null,null,null,null,null,null,null,null,null,null,null,null,null,null,null,null,null,null,null,null,null,null,null,null,null,null,null,null,null,null,null,null,null,null,null,null,null,null,null,null,null,null,null,null,null,null,null,null,null,null,null,null,null,null,null,null,null,null,null,null,null,null,null,null,null,null,null,null,null,null,null,null,0]
[5,"تجهيز المواد والمعدات والأيدي العاملة اللازمة لتجهيز وتثبيت باب PVC بلاستك (0.9*2)م مع الاطار وتثبيت كيلون منشأ تركي نوعية جيدة وكل المتطلبات لانجاز العمل وحسب توجيهات المهندس المشرف على أن يتم أستخدام العمال المحليين وبموجب الأجور في السوق المحلية.","EA.",null,null,null,null,null,null,null,null,null,null,null,null,null,null,null,null,null,null,null,null,null,null,null,null,null,null,null,null,null,null,null,null,null,null,null,null,null,null,null,null,null,null,null,null,null,null,null,null,null,null,null,null,null,null,null,null,null,null,null,null,null,null,null,null,null,null,null,null,null,null,null,null,null,null,null,null,null,null,null,null,null,null,null,null,null,null,null,null,null,null,null,null,null,null,null,null,null,null,null,null,null,null,null,null,null,null,null,null,null,null,null,null,null,null,null,null,null,null,null,null,null,null,null,null,null,null,null,null,null,null,null,null,null,null,null,null,null,0]
[6,"تجهيز المواد والمعدات والأيدي العاملة اللازمة لتثبيت باب حديد سلايد (3*2)م باستخدام بليت لا يقل سمكه عن 2ملم ومقاطع حديد قياس (4* 7.5)سم سمك 3 ملم على أن يتم صبغ كل الاجزاء بطلاء مانع الصدأ ومن ثم الصبغ بالطلاء الدهني ثلاث طبقات مع تثبيت كيلون منشأ تركي نوعية جيدة, شاملا العمل صب قواعد وأعمدة كونكريتية مسلحة عدد2 ولبخ الأعمدة بمونة الاسمنت والرمل مع النثر أو الصبغ وكل المتطلبات حسب توجيهات المهندس المشرف على أن يتم أستخدام العمال المحليين وبموجب الأجور في السوق المحلية. ","EA.",null,null,null,null,null,null,null,null,null,null,null,null,null,null,null,null,null,null,null,null,null,null,null,null,null,null,null,null,null,null,null,null,null,null,null,null,null,null,null,null,null,null,null,null,null,null,null,null,null,null,null,null,null,null,null,null,null,null,null,null,null,null,null,null,null,null,null,null,null,null,null,null,null,null,null,null,null,null,null,null,null,null,null,null,null,null,null,null,null,null,null,null,null,null,null,null,null,null,null,null,null,null,null,null,null,null,null,null,null,null,null,null,null,null,null,null,null,null,null,null,null,null,null,null,null,null,null,null,null,null,null,null,null,null,null,null,null,0]
[7,"تجهيز المواد والمعدات والعمل لتجهيز وتثبيت شبابيك حديد مع كتائب الحماية,على أن يتم صبغ الشباك بطلاء مانع الصدأ ومن ثم الصبغ بالطلاء الدهني ثلاث طبقات مع تثبيت زجاج 4 ملم واقفال نوعية جيدة ومشبك مانع ذباب للفتحات المتحركة وكل المتطلبات من اعمال انهاءات الجدار من الداخل والخارج حسب الموقع بعد تثبيت الشباك وحسب توجيهات المهندس المشرف على أن يتم أستخدام العمال المحليين وبموجب الأجور في السوق المحلية.","m2",null,null,null,null,null,null,null,null,null,null,null,null,null,null,null,null,null,null,null,null,null,null,null,null,null,null,null,null,null,null,null,null,null,null,null,null,null,null,null,null,null,null,null,null,null,null,null,null,null,null,null,null,null,null,null,null,null,null,null,null,null,null,null,null,null,null,null,null,null,null,null,null,null,null,null,null,null,null,null,null,null,null,null,null,null,null,null,null,null,null,null,null,null,null,null,null,null,null,null,null,null,null,null,null,null,null,null,null,null,null,null,null,null,null,null,null,null,null,null,null,null,null,null,null,null,null,null,null,null,null,null,null,null,null,null,null,null,0]
[8,"تجهيز المواد والمعدات والعمل لتجهيز وتثبيت شبابيك (PVC)بلاستك مع تثبيت زجاج 4 ملم واقفال نوعية جيدة ومشبك مانع ذباب للفتحات المتحركة وكل المتطلبات وحسب توجيهات المهندس المشرف على أن يتم أستخدام العمال المحليين وبموجب الأجور في السوق المحلية.","m2",null,null,null,null,null,null,null,null,null,null,null,null,null,null,null,null,null,null,null,null,null,null,null,null,null,null,null,null,null,null,null,null,null,null,null,null,null,null,null,null,null,null,null,null,null,null,null,null,null,null,null,null,null,null,null,null,null,null,null,null,null,null,null,null,null,null,null,null,null,null,null,null,null,null,null,null,null,null,null,null,null,null,null,null,null,null,null,null,null,null,null,null,null,null,null,null,null,null,null,null,null,null,null,null,null,null,null,null,null,null,null,null,null,null,null,null,null,null,null,null,null,null,null,null,null,null,null,null,null,null,null,null,null,null,null,null,null,0]
[9,"تجهيز المواد والمعدات والأيدي العاملة اللازمة لاعمال انهاءات السقوف والجدران الداخلية, شاملا العمل قشط وازالة المساحات المتضررة ورفع الانقاض واعادة السطار والبياض من جديد بالجص والبورك وكل المتطلبات لانجاز العمل حسب توجيهات المهندس المشرف على أن يتم أستخدام العمال المحليين وبموجب الأجور في السوق المحلية.","m2",null,null,null,null,null,null,null,null,null,null,null,null,null,null,null,null,null,null,null,null,null,null,null,null,null,null,null,null,null,null,null,null,null,null,null,null,null,null,null,null,null,null,null,null,null,null,null,null,null,null,null,null,null,null,null,null,null,null,null,null,null,null,null,null,null,null,null,null,null,null,null,null,null,null,null,null,null,null,null,null,null,null,null,null,null,null,null,null,null,null,null,null,null,null,null,null,null,null,null,null,null,null,null,null,null,null,null,null,null,null,null,null,null,null,null,null,null,null,null,null,null,null,null,null,null,null,null,null,null,null,null,null,null,null,null,null,null,0]
[10,"تجهيز المواد والمعدات والأيدي العاملة اللازمة لاعمال اللبخ بمونة السمنت والرمل بنسبة (3:1), شاملا العمل قشط وازالة المساحات المتضررة ورفع الانقاض واعادة اللبخ من جديد وحسب توجيهات المهندس المشرف على أن يتم أستخدام العمال المحليين وبموجب الأجور في السوق المحلية.","m2",null,null,null,null,null,null,null,null,null,null,null,null,null,null,null,null,null,null,null,null,null,null,null,null,null,null,null,null,null,null,null,null,null,null,null,null,null,null,null,null,null,null,null,null,null,null,null,null,null,null,null,null,null,null,null,null,null,null,null,null,null,null,null,null,null,null,null,null,null,null,null,null,null,null,null,null,null,null,null,null,null,null,null,null,null,null,null,null,null,null,null,null,null,null,null,null,null,null,null,null,null,null,null,null,null,null,null,null,null,null,null,null,null,null,null,null,null,null,null,null,null,null,null,null,null,null,null,null,null,null,null,null,null,null,null,null,null,0]
[11,"تجهيز المواد و المعدات والأيدي العاملة اللازمة لصبغ السقوف والجدران بالاصباغ البلاستيكية ثلاث طبقات, شاملا العمل اعمال التصليحات والمعالجة والطلاء الاساس وكل المتطلبات حسب توجيهات المهندس المشرف على أن يتم أستخدام العمال المحليين وبموجب الأجور في السوق المحلية.","m2",null,null,null,null,null,null,null,null,null,null,null,null,null,null,null,null,null,null,null,null,null,null,null,null,null,null,null,null,null,null,null,null,null,null,null,null,null,null,null,null,null,null,null,null,null,null,null,null,null,null,null,null,null,null,null,null,null,null,null,null,null,null,null,null,null,null,null,null,null,null,null,null,null,null,null,null,null,null,null,null,null,null,null,null,null,null,null,null,null,null,null,null,null,null,null,null,null,null,null,null,null,null,null,null,null,null,null,null,null,null,null,null,null,null,null,null,null,null,null,null,null,null,null,null,null,null,null,null,null,null,null,null,null,null,null,null,null,0]
[12,"تجهيز المواد والمعدات والأيدي العاملة اللازمة لبناء ستارة باستخدام بلوك مجوف قياس (15*20*40)سم ومونة السمنت والرمل (3:1) شاملا العمل ازالة الاجزاء المتضررة ورفع الانقاض وكل المتطلبات لانجاز العمل وحسب توجيهات المهندس المشرف على أن يتم أستخدام العمال المحليين وبموجب الأجور في السوق المحلية.","m2",null,null,null,null,null,null,null,null,null,null,null,null,null,null,null,null,null,null,null,null,null,null,null,null,null,null,null,null,null,null,null,null,null,null,null,null,null,null,null,null,null,null,null,null,null,null,null,null,null,null,null,null,null,null,null,null,null,null,null,null,null,null,null,null,null,null,null,null,null,null,null,null,null,null,null,null,null,null,null,null,null,null,null,null,null,null,null,null,null,null,null,null,null,null,null,null,null,null,null,null,null,null,null,null,null,null,null,null,null,null,null,null,null,null,null,null,null,null,null,null,null,null,null,null,null,null,null,null,null,null,null,null,null,null,null,null,null,0]
[13,"تجهيز المواد والمعدات والأيدي العاملة اللازمة لبناء الجدران باستخدام بلوك مجوف قياس (20*20*40)سم ومونة السمنت والرمل (3:1) شاملا العمل ازالة الاجزاء المتضررة ورفع الانقاض وكل المتطلبات لانجاز العمل وحسب توجيهات المهندس المشرف على أن يتم أستخدام العمال المحليين وبموجب الأجور في السوق المحلية.","m2",null,null,null,null,null,null,null,null,null,null,null,null,null,null,null,null,null,null,null,null,null,null,null,null,null,null,null,null,null,null,null,null,null,null,null,null,null,null,null,null,null,null,null,null,null,null,null,null,null,null,null,null,null,null,null,null,null,null,null,null,null,null,null,null,null,null,null,null,null,null,null,null,null,null,null,null,null,null,null,null,null,null,null,null,null,null,null,null,null,null,null,null,null,null,null,null,null,null,null,null,null,null,null,null,null,null,null,null,null,null,null,null,null,null,null,null,null,null,null,null,null,null,null,null,null,null,null,null,null,null,null,null,null,null,null,null,null,0]
[14,"تجهيز المواد والمعدات والأيدي العاملة اللازمة لبناء جدران حجر سمك 30سم باستخدام مونة السمنت والرمل (3:1) شاملا العمل ازالة الاجزاء المتضررة ورفع الانقاض وكل المتطلبات لانجاز العمل وحسب توجيهات المهندس المشرف على أن يتم أستخدام العمال المحليين وبموجب الأجور في السوق المحلية.","m2",null,null,null,null,null,null,null,null,null,null,null,null,null,null,null,null,null,null,null,null,null,null,null,null,null,null,null,null,null,null,null,null,null,null,null,null,null,null,null,null,null,null,null,null,null,null,null,null,null,null,null,null,null,null,null,null,null,null,null,null,null,null,null,null,null,null,null,null,null,null,null,null,null,null,null,null,null,null,null,null,null,null,null,null,null,null,null,null,null,null,null,null,null,null,null,null,null,null,null,null,null,null,null,null,null,null,null,null,null,null,null,null,null,null,null,null,null,null,null,null,null,null,null,null,null,null,null,null,null,null,null,null,null,null,null,null,null,0]
[15,"تجهيز المواد والمعدات والأيدي العاملة اللازمة لاعمال تغليف سيراميك جدران وارضيات باستخدام مونة السمنت والرمل (3:1), شاملا العمل قلع الطبقات الحالية المتضررة ورفع الانقاض وتغليف سيراميك جديد وكل المتطلبات لانجاز العمل حسب توجيهات المهندس المشرف على أن يتم أستخدام العمال المحليين وبموجب الأجور في السوق المحلية.","m2",null,null,null,null,null,null,null,null,null,null,null,null,null,null,null,null,null,null,null,null,null,null,null,null,null,null,null,null,null,null,null,null,null,null,null,null,null,null,null,null,null,null,null,null,null,null,null,null,null,null,null,null,null,null,null,null,null,null,null,null,null,null,null,null,null,null,null,null,null,null,null,null,null,null,null,null,null,null,null,null,null,null,null,null,null,null,null,null,null,null,null,null,null,null,null,null,null,null,null,null,null,null,null,null,null,null,null,null,null,null,null,null,null,null,null,null,null,null,null,null,null,null,null,null,null,null,null,null,null,null,null,null,null,null,null,null,null,0]
[16,"تجهيز المواد والمعدات والأيدي العاملة اللازمة لاعمال تغليف ارضيات بالكاشي الموزائيك باستخدام مونة السمنت والرمل (3:1), شاملا العمل قلع الطبقات الحالية المتضررة ورفع الانقاض وكل المتطلبات لانجاز العمل و حسب توجيهات المهندس المشرف على أن يتم أستخدام العمال المحليين وبموجب الأجور في السوق المحلية.","m2",null,null,null,null,null,null,null,null,null,null,null,null,null,null,null,null,null,null,null,null,null,null,null,null,null,null,null,null,null,null,null,null,null,null,null,null,null,null,null,null,null,null,null,null,null,null,null,null,null,null,null,null,null,null,null,null,null,null,null,null,null,null,null,null,null,null,null,null,null,null,null,null,null,null,null,null,null,null,null,null,null,null,null,null,null,null,null,null,null,null,null,null,null,null,null,null,null,null,null,null,null,null,null,null,null,null,null,null,null,null,null,null,null,null,null,null,null,null,null,null,null,null,null,null,null,null,null,null,null,null,null,null,null,null,null,null,null,0]
[17,"تجهيز المواد والمعدات والأيدي العاملة اللازمة لصب كونكريت مسلح, (12 ملم) حديد التسليح, (15*15 سم) المسافة البينية بين القضبان, سمك الصب (20 سم) للأجزاء المتضررة من السقوف بنسبة خلط (3:1.5:1) مع اضافة مادة SBR لربطه مع الكونكريت القديم شاملا العمل قلع المساحات المتضررة ورفع الانقاض وكل المتطلبات لانجاز العمل حسب توجيهات المهندس المشرف على أن يتم أستخدام العمال المحليين وبموجب الأجور في السوق المحلية.","m2",null,null,null,null,null,null,null,null,null,null,null,null,null,null,null,null,null,null,null,null,null,null,null,null,null,null,null,null,null,null,null,null,null,null,null,null,null,null,null,null,null,null,null,null,null,null,null,null,null,null,null,null,null,null,null,null,null,null,null,null,null,null,null,null,null,null,null,null,null,null,null,null,null,null,null,null,null,null,null,null,null,null,null,null,null,null,null,null,null,null,null,null,null,null,null,null,null,null,null,null,null,null,null,null,null,null,null,null,null,null,null,null,null,null,null,null,null,null,null,null,null,null,null,null,null,null,null,null,null,null,null,null,null,null,null,null,null,0]
[18,"تجهيز المواد والمعدات والعمل لتثبيت سقوف وقواطع من الساندويج بنل (5سم) مع هيكل حديد من انبوب مقطع مستطيل بوري شخاطة (4*7.5)سم سمك 2ملم شاملا العمل صبغ الهيكل بطلاء مانع الصدأ وطبقتين من الطلاء الدهني وكل المتطلبات لانجاز العمل حسب توجيهات المهندس المشرف على أن يتم أستخدام العمال المحليين وبموجب الأجور في السوق المحلية.","m2",null,null,null,null,null,null,null,null,null,null,null,null,null,null,null,null,null,null,null,null,null,null,null,null,null,null,null,null,null,null,null,null,null,null,null,null,null,null,null,null,null,null,null,null,null,null,null,null,null,null,null,null,null,null,null,null,null,null,null,null,null,null,null,null,null,null,null,null,null,null,null,null,null,null,null,null,null,null,null,null,null,null,null,null,null,null,null,null,null,null,null,null,null,null,null,null,null,null,null,null,null,null,null,null,null,null,null,null,null,null,null,null,null,null,null,null,null,null,null,null,null,null,null,null,null,null,null,null,null,null,null,null,null,null,null,null,null,0]
[19,"تجهيز المواد والمعدات والأيدي العاملة اللازمة لصب خرسانة سمك 10سم للأرضيات باستخدام السمنت المقاوم للاملاح ونسبة خلط (4:2:1), شاملا العمل ازالة الطبقات المتضررة و رفع الانقاض ثم رصف طبقة كسر حجر او جلمود مع الحدل الجيد قبل الصب وكل المتطلبات لانجاز العمل حسب توجيهات المهندس المشرف على أن يتم أستخدام العمال المحليين وبموجب الأجور في السوق المحلية.","m2",null,null,null,null,null,null,null,null,null,null,null,null,null,null,null,null,null,null,null,null,null,null,null,null,null,null,null,null,null,null,null,null,null,null,null,null,null,null,null,null,null,null,null,null,null,null,null,null,null,null,null,null,null,null,null,null,null,null,null,null,null,null,null,null,null,null,null,null,null,null,null,null,null,null,null,null,null,null,null,null,null,null,null,null,null,null,null,null,null,null,null,null,null,null,null,null,null,null,null,null,null,null,null,null,null,null,null,null,null,null,null,null,null,null,null,null,null,null,null,null,null,null,null,null,null,null,null,null,null,null,null,null,null,null,null,null,null,0]
[20,"تجهيز المواد والمعدات والأيدي العاملة اللازمة لاعمال التسطيح باستخدام الشتايكر قياس (80*80*4)سم, شاملا العمل ازالة التسطيح القديم ورفع الانقاض وتنظيف السطح ثم الطلاء بمانع الرطوبة (الفلانكوت) وطبقتين من القير وطبقة من النايلون والتهوير بالتراب النهري والتطبيق بالشتايكر مع ملئ الفواصل بالماستك مع مراعاة ميول انحدار مياه الأمطار وكل ما يتطلبه العمل حسب توجيهات المهندس المشرف على أن يتم أستخدام العمال المحليين وبموجب الأجور في السوق المحلية.","m2",null,null,null,null,null,null,null,null,null,null,null,null,null,null,null,null,null,null,null,null,null,null,null,null,null,null,null,null,null,null,null,null,null,null,null,null,null,null,null,null,null,null,null,null,null,null,null,null,null,null,null,null,null,null,null,null,null,null,null,null,null,null,null,null,null,null,null,null,null,null,null,null,null,null,null,null,null,null,null,null,null,null,null,null,null,null,null,null,null,null,null,null,null,null,null,null,null,null,null,null,null,null,null,null,null,null,null,null,null,null,null,null,null,null,null,null,null,null,null,null,null,null,null,null,null,null,null,null,null,null,null,null,null,null,null,null,null,0]
[21,"تجهيز المواد والمعدات والأيدي العاملة اللازمة لبناء مجموعة صحية خارجية بمساحة (3 م2) صافية من الداخل, وتشمل أعمال حفر وصب الاسس بالخرسانة المسلحة وبناء الجدران بالبلوك المجوف (20*20*40)سم بارتفاع صافي (2.60 سم) وصب سقف كونكريتي مسلح والانهاءات بالسيراميك من الداخل (الجدران والارضيه) واللبخ والنثر من الخارج مع تثبيت باب وهوائية PVC واعمال تاسيسات الماء والكهرباء والمجاري والقاعده الشرقية وخلاط كير دوش تركي المنشأ, شاملا العمل ازالة المجموعة الصحية القديمة ورفع الانقاض وكافة المتطلبات حسب توجيهات المهندس المشرف على أن يتم أستخدام العمال المحليين وبموجب الأجور في السوق المحلية.","EA.",null,null,null,null,null,null,null,null,null,null,null,null,null,null,null,null,null,null,null,null,null,null,null,null,null,null,null,null,null,null,null,null,null,null,null,null,null,null,null,null,null,null,null,null,null,null,null,null,null,null,null,null,null,null,null,null,null,null,null,null,null,null,null,null,null,null,null,null,null,null,null,null,null,null,null,null,null,null,null,null,null,null,null,null,null,null,null,null,null,null,null,null,null,null,null,null,null,null,null,null,null,null,null,null,null,null,null,null,null,null,null,null,null,null,null,null,null,null,null,null,null,null,null,null,null,null,null,null,null,null,null,null,null,null,null,null,null,0]
[22,"تجهيز المواد والمعدات والأيدي العاملة اللازمة لتجهيز وتثبيت خزان ماء بليت مغلون حجم (1000 لتر) كيج 16 مع الطوافة وكل المتطلبات لانجاز العمل وثتبيته على قواعد كونكريتية عدد4 وكافة التأسيسات الصحية اللازمة لربطه مع شبكة الماء الخارجية والداخلية وحسب توجيهات المهندس المشرف على أن يتم أستخدام العمال المحليين وبموجب الأجور في السوق المحلية.","EA.",null,null,null,null,null,null,null,null,null,null,null,null,null,null,null,null,null,null,null,null,null,null,null,null,null,null,null,null,null,null,null,null,null,null,null,null,null,null,null,null,null,null,null,null,null,null,null,null,null,null,null,null,null,null,null,null,null,null,null,null,null,null,null,null,null,null,null,null,null,null,null,null,null,null,null,null,null,null,null,null,null,null,null,null,null,null,null,null,null,null,null,null,null,null,null,null,null,null,null,null,null,null,null,null,null,null,null,null,null,null,null,null,null,null,null,null,null,null,null,null,null,null,null,null,null,null,null,null,null,null,null,null,null,null,null,null,null,0]
[23,"تجهيز المواد والمعدات والأيدي العاملة اللازمة لتجهيز وتركيب وتأسيس مغسلة سيراميك قياس(40*60)سم مع المسند والخلاط تركي المنشأ والأقفال وكافة الملحقات لانجاز العمل وحسب توجيهات المهندس المشرف على أن يتم أستخدام العمال المحليين وبموجب الأجور في السوق المحلية.","EA.",null,null,null,null,null,null,null,null,null,null,null,null,null,null,null,null,null,null,null,null,null,null,null,null,null,null,null,null,null,null,null,null,null,null,null,null,null,null,null,null,null,null,null,null,null,null,null,null,null,null,null,null,null,null,null,null,null,null,null,null,null,null,null,null,null,null,null,null,null,null,null,null,null,null,null,null,null,null,null,null,null,null,null,null,null,null,null,null,null,null,null,null,null,null,null,null,null,null,null,null,null,null,null,null,null,null,null,null,null,null,null,null,null,null,null,null,null,null,null,null,null,null,null,null,null,null,null,null,null,null,null,null,null,null,null,null,null,0]
[24,"تجهيز المواد والمعدات والأيدي العاملة اللازمة لتجهيز وتركيب وتأسيس حنفية ماء كروم 12ملم (1/2 انج) منشأ تركي مع كافة الملحقات لانجاز العمل وحسب توجيهات المهندس المشرف على أن يتم أستخدام العمال المحليين وبموجب الأجور في السوق المحلية.","EA.",null,null,null,null,null,null,null,null,null,null,null,null,null,null,null,null,null,null,null,null,null,null,null,null,null,null,null,null,null,null,null,null,null,null,null,null,null,null,null,null,null,null,null,null,null,null,null,null,null,null,null,null,null,null,null,null,null,null,null,null,null,null,null,null,null,null,null,null,null,null,null,null,null,null,null,null,null,null,null,null,null,null,null,null,null,null,null,null,null,null,null,null,null,null,null,null,null,null,null,null,null,null,null,null,null,null,null,null,null,null,null,null,null,null,null,null,null,null,null,null,null,null,null,null,null,null,null,null,null,null,null,null,null,null,null,null,null,0]
[25,"تجهيز المواد والمعدات والأيدي العاملة اللازمة لتجهيز وتركيب وربط انابيب (PPR) قطر 18ملم (3/4 انج) لتوصيلات الماء مع كافة ملحقات التوصيل اللازمة لانجاز العمل وحسب توجيهات المهندس المشرف على أن يتم أستخدام العمال المحليين وبموجب الأجور في السوق المحلية.","ML",null,null,null,null,null,null,null,null,null,null,null,null,null,null,null,null,null,null,null,null,null,null,null,null,null,null,null,null,null,null,null,null,null,null,null,null,null,null,null,null,null,null,null,null,null,null,null,null,null,null,null,null,null,null,null,null,null,null,null,null,null,null,null,null,null,null,null,null,null,null,null,null,null,null,null,null,null,null,null,null,null,null,null,null,null,null,null,null,null,null,null,null,null,null,null,null,null,null,null,null,null,null,null,null,null,null,null,null,null,null,null,null,null,null,null,null,null,null,null,null,null,null,null,null,null,null,null,null,null,null,null,null,null,null,null,null,null,0]
[26,"تجهيز المواد والمعدات والأيدي العاملة اللازمة لتجهيز وتركيب وتأسيس انابيب مجاري بلاستك 100ملم (4 انج) شاملا العمل اعمال الحفر والتركيب والتغليف بالخرسانة مع جميع التراكيب وملحقات التوصيل اللازمة لانجاز العمل ورفع الانقاض وحسب توجيهات المهندس المشرف على أن يتم أستخدام العمال المحليين وبموجب الأجور في السوق المحلية.","ML",null,null,null,null,null,null,null,null,null,null,null,null,null,null,null,null,null,null,null,null,null,null,null,null,null,null,null,null,null,null,null,null,null,null,null,null,null,null,null,null,null,null,null,null,null,null,null,null,null,null,null,null,null,null,null,null,null,null,null,null,null,null,null,null,null,null,null,null,null,null,null,null,null,null,null,null,null,null,null,null,null,null,null,null,null,null,null,null,null,null,null,null,null,null,null,null,null,null,null,null,null,null,null,null,null,null,null,null,null,null,null,null,null,null,null,null,null,null,null,null,null,null,null,null,null,null,null,null,null,null,null,null,null,null,null,null,null,0]
[27,"تجهيز المواد والمعدات والأيدي العاملة اللازمة لتجهيز وصب مانهولات مجاري شاملا العمل اعمال الحفر والصب والطلاء بمانع الرطوبة (الفلانكوت) والدفن مع تركيب غطاء بلاستيكي قياس (30*30)سم مع كافة الملحقات لانجاز العمل وحسب توجيهات المهندس المشرف على أن يتم أستخدام العمال المحليين وبموجب الأجور في السوق المحلية.","EA.",null,null,null,null,null,null,null,null,null,null,null,null,null,null,null,null,null,null,null,null,null,null,null,null,null,null,null,null,null,null,null,null,null,null,null,null,null,null,null,null,null,null,null,null,null,null,null,null,null,null,null,null,null,null,null,null,null,null,null,null,null,null,null,null,null,null,null,null,null,null,null,null,null,null,null,null,null,null,null,null,null,null,null,null,null,null,null,null,null,null,null,null,null,null,null,null,null,null,null,null,null,null,null,null,null,null,null,null,null,null,null,null,null,null,null,null,null,null,null,null,null,null,null,null,null,null,null,null,null,null,null,null,null,null,null,null,null,0]
[28,"تجهيز المواد والمعدات والأيدي العاملة اللازمة لتجهيز وتثبيت وتسليك وربط وتشغيل مصباح انارة 70 واط باستخدام اسلاك حجم (2*2.5ملم2), شاملا العمل كل المتطلبات اللازمة  حسب توجيهات المهندس المشرف على أن يتم أستخدام العمال المحليين وبموجب الأجور في السوق المحلية.","EA.",null,null,null,null,null,null,null,null,null,null,null,null,null,null,null,null,null,null,null,null,null,null,null,null,null,null,null,null,null,null,null,null,null,null,null,null,null,null,null,null,null,null,null,null,null,null,null,null,null,null,null,null,null,null,null,null,null,null,null,null,null,null,null,null,null,null,null,null,null,null,null,null,null,null,null,null,null,null,null,null,null,null,null,null,null,null,null,null,null,null,null,null,null,null,null,null,null,null,null,null,null,null,null,null,null,null,null,null,null,null,null,null,null,null,null,null,null,null,null,null,null,null,null,null,null,null,null,null,null,null,null,null,null,null,null,null,null,0]
[29," تجهيز المواد والمعدات والأيدي العاملة اللازمة لتجهيز وتثبيت وتسليك وربط وتشغيل مأخذ قدرة 13 أمبير باستخدام اسلاك حجم (2*2.5ملم2), شاملا العمل كل المتطلبات اللازمة  حسب توجيهات المهندس المشرف على أن يتم أستخدام العمال المحليين وبموجب الأجور في السوق المحلية.","EA.",null,null,null,null,null,null,null,null,null,null,null,null,null,null,null,null,null,null,null,null,null,null,null,null,null,null,null,null,null,null,null,null,null,null,null,null,null,null,null,null,null,null,null,null,null,null,null,null,null,null,null,null,null,null,null,null,null,null,null,null,null,null,null,null,null,null,null,null,null,null,null,null,null,null,null,null,null,null,null,null,null,null,null,null,null,null,null,null,null,null,null,null,null,null,null,null,null,null,null,null,null,null,null,null,null,null,null,null,null,null,null,null,null,null,null,null,null,null,null,null,null,null,null,null,null,null,null,null,null,null,null,null,null,null,null,null,null,0]
[30," تجهيز المواد والمعدات والأيدي العاملة اللازمة لتجهيز وتثبيت وتسليك وربط وتشغيل سخان ماء كهربائي سعة 160 لتر باستخدام اسلاك حجم (2*4ملم2) وقاطع كهربائي 60 أمبير, شاملا العمل كل التراكيب والملحقات اللازمة لانجاز العمل حسب توجيهات المهندس المشرف على أن يتم أستخدام العمال المحليين وبموجب الأجور في السوق المحلية.","EA.",null,null,null,null,null,null,null,null,null,null,null,null,null,null,null,null,null,null,null,null,null,null,null,null,null,null,null,null,null,null,null,null,null,null,null,null,null,null,null,null,null,null,null,null,null,null,null,null,null,null,null,null,null,null,null,null,null,null,null,null,null,null,null,null,null,null,null,null,null,null,null,null,null,null,null,null,null,null,null,null,null,null,null,null,null,null,null,null,null,null,null,null,null,null,null,null,null,null,null,null,null,null,null,null,null,null,null,null,null,null,null,null,null,null,null,null,null,null,null,null,null,null,null,null,null,null,null,null,null,null,null,null,null,null,null,null,null,0]
[31," تجهيز المواد والمعدات والأيدي العاملة اللازمة لتجهيز وتثبيت وتسليك وربط وتشغيل لوحة توزيع كهربائية تحتوي على قاطع رئيسي 80 امبير و 6 قواطع فرعية (10-32) امبير, شاملا العمل كل التراكيب والملحقات اللازمة لانجاز العمل حسب توجيهات المهندس المشرف على أن يتم أستخدام العمال المحليين وبموجب الأجور في السوق المحلية.","EA.",null,null,null,null,null,null,null,null,null,null,null,null,null,null,null,null,null,null,null,null,null,null,null,null,null,null,null,null,null,null,null,null,null,null,null,null,null,null,null,null,null,null,null,null,null,null,null,null,null,null,null,null,null,null,null,null,null,null,null,null,null,null,null,null,null,null,null,null,null,null,null,null,null,null,null,null,null,null,null,null,null,null,null,null,null,null,null,null,null,null,null,null,null,null,null,null,null,null,null,null,null,null,null,null,null,null,null,null,null,null,null,null,null,null,null,null,null,null,null,null,null,null,null,null,null,null,null,null,null,null,null,null,null,null,null,null,null,0]
[32," تجهيز المواد والمعدات والأيدي العاملة اللازمة لتجهيز وتثبيت وتسليك وربط كيبل كهربائي (2*10ملم2), شاملا العمل كل التراكيب والملحقات اللازمة لانجاز العمل حسب توجيهات المهندس المشرف على أن يتم أستخدام العمال المحليين وبموجب الأجور في السوق المحلية.","ML",null,null,null,null,null,null,null,null,null,null,null,null,null,null,null,null,null,null,null,null,null,null,null,null,null,null,null,null,null,null,null,null,null,null,null,null,null,null,null,null,null,null,null,null,null,null,null,null,null,null,null,null,null,null,null,null,null,null,null,null,null,null,null,null,null,null,null,null,null,null,null,null,null,null,null,null,null,null,null,null,null,null,null,null,null,null,null,null,null,null,null,null,null,null,null,null,null,null,null,null,null,null,null,null,null,null,null,null,null,null,null,null,null,null,null,null,null,null,null,null,null,null,null,null,null,null,null,null,null,null,null,null,null,null,null,null,null,0]

{"sheet":"استعلام","index":2,"n_rows":51,"n_cols":12,"rows_kept":51,"cut":false,"hidden":false,"merged":[[0,1,2,11],[1,0,2,0],[3,0,3,5],[3,6,3,11]]}
["رقم الفقرة",{"$f":"VLOOKUP(A2,المنفذ,2,FALSE)","v":"تجهيز المواد والمعدات والأيدي العاملة اللازمة لتجهيز وتثبيت زجاج سمك 4ملم, ويتضمن العمل ازالة الزجاج المتضرر ورفع الانقاض وكل المتطلبات لانجاز العمل حسب توجيهات المهندس المشرف على أن يتم أستخدام العمال المحليين وبموجب الأجور في السوق المحلية."}]
[1]
[]
["الكشف المطلوب",null,null,null,null,null,"الكشف المنفذ"]
["رقم الدار","الكمية","رقم الدار","الكمية","رقم الدار","الكمية","رقم الدار","الكمية","رقم الدار","الكمية","رقم الدار","الكمية"]
["Unit",{"$f":"INDEX('الكشف المطلوب'!$C$2:$EJ$33,MATCH(استعلام!$A$2,'الكشف المطلوب'!$A$2:$A$33,0),MATCH(استعلام!$A6,'الكشف المطلوب'!$C$1:$EK$1,0))","v":"m2"},"M80",{"$f":"INDEX('الكشف المطلوب'!$C$2:$EJ$33,MATCH(استعلام!$A$2,'الكشف المطلوب'!$A$2:$A$33,0),MATCH(استعلام!$C6,'الكشف المطلوب'!$C$1:$EK$1,0))","v":0},"N54",{"$f":"INDEX('الكشف المطلوب'!$C$2:$EJ$33,MATCH(استعلام!$A$2,'الكشف المطلوب'!$A$2:$A$33,0),MATCH(استعلام!$E6,'الكشف المطلوب'!$C$1:$EK$1,0))","v":0},"Unit",{"$f":"INDEX('الكشف المنفذ'!$C$2:$EJ$33,MATCH(استعلام!$A$2,'الكشف المنفذ'!$A$2:$A$33,0),MATCH(استعلام!$G6,'الكشف المنفذ'!$C$1:$EK$1,0))","v":"m2"},"M80",{"$f":"INDEX('الكشف المنفذ'!$C$2:$EJ$33,MATCH(استعلام!$A$2,'الكشف المنفذ'!$A$2:$A$33,0),MATCH(استعلام!$I6,'الكشف المنفذ'!$C$1:$EK$1,0))","v":0},"N54",{"$f":"INDEX('الكشف المنفذ'!$C$2:$EJ$33,MATCH(استعلام!$A$2,'الكشف المنفذ'!$A$2:$A$33,0),MATCH(استعلام!$K6,'الكشف المنفذ'!$C$1:$EK$1,0))","v":0}]
["M1",{"$f":"INDEX('الكشف المطلوب'!$C$2:$EJ$33,MATCH(استعلام!$A$2,'الكشف المطلوب'!$A$2:$A$33,0),MATCH(استعلام!$A7,'الكشف المطلوب'!$C$1:$EK$1,0))","v":7},"M89",{"$f":"INDEX('الكشف المطلوب'!$C$2:$EJ$33,MATCH(استعلام!$A$2,'الكشف المطلوب'!$A$2:$A$33,0),MATCH(استعلام!$C7,'الكشف المطلوب'!$C$1:$EK$1,0))","v":0},"N55",{"$f":"INDEX('الكشف المطلوب'!$C$2:$EJ$33,MATCH(استعلام!$A$2,'الكشف المطلوب'!$A$2:$A$33,0),MATCH(استعلام!$E7,'الكشف المطلوب'!$C$1:$EK$1,0))","v":0},"M1",{"$f":"INDEX('الكشف المنفذ'!$C$2:$EJ$33,MATCH(استعلام!$A$2,'الكشف المنفذ'!$A$2:$A$33,0),MATCH(استعلام!$G7,'الكشف المنفذ'!$C$1:$EK$1,0))","v":0},"M89",{"$f":"INDEX('الكشف المنفذ'!$C$2:$EJ$33,MATCH(استعلام!$A$2,'الكشف المنفذ'!$A$2:$A$33,0),MATCH(استعلام!$I7,'الكشف المنفذ'!$C$1:$EK$1,0))","v":0},"N55",{"$f":"INDEX('الكشف المنفذ'!$C$2:$EJ$33,MATCH(استعلام!$A$2,'الكشف المنفذ'!$A$2:$A$33,0),MATCH(استعلام!$K7,'الكشف المنفذ'!$C$1:$EK$1,0))","v":0}]
["M2",{"$f":"INDEX('الكشف المطلوب'!$C$2:$EJ$33,MATCH(استعلام!$A$2,'الكشف المطلوب'!$A$2:$A$33,0),MATCH(استعلام!$A8,'الكشف المطلوب'!$C$1:$EK$1,0))","v":10},"M93",{"$f":"INDEX('الكشف المطلوب'!$C$2:$EJ$33,MATCH(استعلام!$A$2,'الكشف المطلوب'!$A$2:$A$33,0),MATCH(استعلام!$C8,'الكشف المطلوب'!$C$1:$EK$1,0))","v":10},"N57",{"$f":"INDEX('الكشف المطلوب'!$C$2:$EJ$33,MATCH(استعلام!$A$2,'الكشف المطلوب'!$A$2:$A$33,0),MATCH(استعلام!$E8,'الكشف المطلوب'!$C$1:$EK$1,0))","v":10},"M2",{"$f":"INDEX('الكشف المنفذ'!$C$2:$EJ$33,MATCH(استعلام!$A$2,'الكشف المنفذ'!$A$2:$A$33,0),MATCH(استعلام!$G8,'الكشف المنفذ'!$C$1:$EK$1,0))","v":5},"M93",{"$f":"INDEX('الكشف المنفذ'!$C$2:$EJ$33,MATCH(استعلام!$A$2,'الكشف المنفذ'!$A$2:$A$33,0),MATCH(استعلام!$I8,'الكشف المنفذ'!$C$1:$EK$1,0))","v":0},"N57",{"$f":"INDEX('الكشف المنفذ'!$C$2:$EJ$33,MATCH(استعلام!$A$2,'الكشف المنفذ'!$A$2:$A$33,0),MATCH(استعلام!$K8,'الكشف المنفذ'!$C$1:$EK$1,0))","v":0}]
["M5",{"$f":"INDEX('الكشف المطلوب'!$C$2:$EJ$33,MATCH(استعلام!$A$2,'الكشف المطلوب'!$A$2:$A$33,0),MATCH(استعلام!$A9,'الكشف المطلوب'!$C$1:$EK$1,0))","v":0},"M94",{"$f":"INDEX('الكشف المطلوب'!$C$2:$EJ$33,MATCH(استعلام!$A$2,'الكشف المطلوب'!$A$2:$A$33,0),MATCH(استعلام!$C9,'الكشف المطلوب'!$C$1:$EK$1,0))","v":0},"N58",{"$f":"INDEX('الكشف المطلوب'!$C$2:$EJ$33,MATCH(استعلام!$A$2,'الكشف المطلوب'!$A$2:$A$33,0),MATCH(استعلام!$E9,'الكشف المطلوب'!$C$1:$EK$1,0))","v":0},"M5",{"$f":"INDEX('الكشف المنفذ'!$C$2:$EJ$33,MATCH(استعلام!$A$2,'الكشف المنفذ'!$A$2:$A$33,0),MATCH(استعلام!$G9,'الكشف المنفذ'!$C$1:$EK$1,0))","v":0},"M94",{"$f":"INDEX('الكشف المنفذ'!$C$2:$EJ$33,MATCH(استعلام!$A$2,'الكشف المنفذ'!$A$2:$A$33,0),MATCH(استعلام!$I9,'الكشف المنفذ'!$C$1:$EK$1,0))","v":0},"N58",{"$f":"INDEX('الكشف المنفذ'!$C$2:$EJ$33,MATCH(استعلام!$A$2,'الكشف المنفذ'!$A$2:$A$33,0),MATCH(استعلام!$K9,'الكشف المنفذ'!$C$1:$EK$1,0))","v":0}]
["M8",{"$f":"INDEX('الكشف المطلوب'!$C$2:$EJ$33,MATCH(استعلام!$A$2,'الكشف المطلوب'!$A$2:$A$33,0),MATCH(استعلام!$A10,'الكشف المطلوب'!$C$1:$EK$1,0))","v":0},"M96",{"$f":"INDEX('الكشف المطلوب'!$C$2:$EJ$33,MATCH(استعلام!$A$2,'الكشف المطلوب'!$A$2:$A$33,0),MATCH(استعلام!$C10,'الكشف المطلوب'!$C$1:$EK$1,0))","v":0},"N59",{"$f":"INDEX('الكشف المطلوب'!$C$2:$EJ$33,MATCH(استعلام!$A$2,'الكشف المطلوب'!$A$2:$A$33,0),MATCH(استعلام!$E10,'الكشف المطلوب'!$C$1:$EK$1,0))","v":0},"M8",{"$f":"INDEX('الكشف المنفذ'!$C$2:$EJ$33,MATCH(استعلام!$A$2,'الكشف المنفذ'!$A$2:$A$33,0),MATCH(استعلام!$G10,'الكشف المنفذ'!$C$1:$EK$1,0))","v":0},"M96",{"$f":"INDEX('الكشف المنفذ'!$C$2:$EJ$33,MATCH(استعلام!$A$2,'الكشف المنفذ'!$A$2:$A$33,0),MATCH(استعلام!$I10,'الكشف المنفذ'!$C$1:$EK$1,0))","v":0},"N59",{"$f":"INDEX('الكشف المنفذ'!$C$2:$EJ$33,MATCH(استعلام!$A$2,'الكشف المنفذ'!$A$2:$A$33,0),MATCH(استعلام!$K10,'الكشف المنفذ'!$C$1:$EK$1,0))","v":0}]
["M10",{"$f":"INDEX('الكشف المطلوب'!$C$2:$EJ$33,MATCH(استعلام!$A$2,'الكشف المطلوب'!$A$2:$A$33,0),MATCH(استعلام!$A11,'الكشف المطلوب'!$C$1:$EK$1,0))","v":0},"M98",{"$f":"INDEX('الكشف المطلوب'!$C$2:$EJ$33,MATCH(استعلام!$A$2,'الكشف المطلوب'!$A$2:$A$33,0),MATCH(استعلام!$C11,'الكشف المطلوب'!$C$1:$EK$1,0))","v":0},"N61",{"$f":"INDEX('الكشف المطلوب'!$C$2:$EJ$33,MATCH(استعلام!$A$2,'الكشف المطلوب'!$A$2:$A$33,0),MATCH(استعلام!$E11,'الكشف المطلوب'!$C$1:$EK$1,0))","v":0},"M10",{"$f":"INDEX('الكشف المنفذ'!$C$2:$EJ$33,MATCH(استعلام!$A$2,'الكشف المنفذ'!$A$2:$A$33,0),MATCH(استعلام!$G11,'الكشف المنفذ'!$C$1:$EK$1,0))","v":0},"M98",{"$f":"INDEX('الكشف المنفذ'!$C$2:$EJ$33,MATCH(استعلام!$A$2,'الكشف المنفذ'!$A$2:$A$33,0),MATCH(استعلام!$I11,'الكشف المنفذ'!$C$1:$EK$1,0))","v":0},"N61",{"$f":"INDEX('الكشف المنفذ'!$C$2:$EJ$33,MATCH(استعلام!$A$2,'الكشف المنفذ'!$A$2:$A$33,0),MATCH(استعلام!$K11,'الكشف المنفذ'!$C$1:$EK$1,0))","v":0}]
["M11",{"$f":"INDEX('الكشف المطلوب'!$C$2:$EJ$33,MATCH(استعلام!$A$2,'الكشف المطلوب'!$A$2:$A$33,0),MATCH(استعلام!$A12,'الكشف المطلوب'!$C$1:$EK$1,0))","v":15},"M100",{"$f":"INDEX('الكشف المطلوب'!$C$2:$EJ$33,MATCH(استعلام!$A$2,'الكشف المطلوب'!$A$2:$A$33,0),MATCH(استعلام!$C12,'الكشف المطلوب'!$C$1:$EK$1,0))","v":0},"N62",{"$f":"INDEX('الكشف المطلوب'!$C$2:$EJ$33,MATCH(استعلام!$A$2,'الكشف المطلوب'!$A$2:$A$33,0),MATCH(استعلام!$E12,'الكشف المطلوب'!$C$1:$EK$1,0))","v":0},"M11",{"$f":"INDEX('الكشف المنفذ'!$C$2:$EJ$33,MATCH(استعلام!$A$2,'الكشف المنفذ'!$A$2:$A$33,0),MATCH(استعلام!$G12,'الكشف المنفذ'!$C$1:$EK$1,0))","v":8},"M100",{"$f":"INDEX('الكشف المنفذ'!$C$2:$EJ$33,MATCH(استعلام!$A$2,'الكشف المنفذ'!$A$2:$A$33,0),MATCH(استعلام!$I12,'الكشف المنفذ'!$C$1:$EK$1,0))","v":0},"N62",{"$f":"INDEX('الكشف المنفذ'!$C$2:$EJ$33,MATCH(استعلام!$A$2,'الكشف المنفذ'!$A$2:$A$33,0),MATCH(استعلام!$K12,'الكشف المنفذ'!$C$1:$EK$1,0))","v":0}]
["M12",{"$f":"INDEX('الكشف المطلوب'!$C$2:$EJ$33,MATCH(استعلام!$A$2,'الكشف المطلوب'!$A$2:$A$33,0),MATCH(استعلام!$A13,'الكشف المطلوب'!$C$1:$EK$1,0))","v":0},"M101",{"$f":"INDEX('الكشف المطلوب'!$C$2:$EJ$33,MATCH(استعلام!$A$2,'الكشف المطلوب'!$A$2:$A$33,0),MATCH(استعلام!$C13,'الكشف المطلوب'!$C$1:$EK$1,0))","v":5},"N63",{"$f":"INDEX('الكشف المطلوب'!$C$2:$EJ$33,MATCH(استعلام!$A$2,'الكشف المطلوب'!$A$2:$A$33,0),MATCH(استعلام!$E13,'الكشف المطلوب'!$C$1:$EK$1,0))","v":0},"M12",{"$f":"INDEX('الكشف المنفذ'!$C$2:$EJ$33,MATCH(استعلام!$A$2,'الكشف المنفذ'!$A$2:$A$33,0),MATCH(استعلام!$G13,'الكشف المنفذ'!$C$1:$EK$1,0))","v":0},"M101",{"$f":"INDEX('الكشف المنفذ'!$C$2:$EJ$33,MATCH(استعلام!$A$2,'الكشف المنفذ'!$A$2:$A$33,0),MATCH(استعلام!$I13,'الكشف المنفذ'!$C$1:$EK$1,0))","v":0},"N63",{"$f":"INDEX('الكشف المنفذ'!$C$2:$EJ$33,MATCH(استعلام!$A$2,'الكشف المنفذ'!$A$2:$A$33,0),MATCH(استعلام!$K13,'الكشف المنفذ'!$C$1:$EK$1,0))","v":0}]
["M13",{"$f":"INDEX('الكشف المطلوب'!$C$2:$EJ$33,MATCH(استعلام!$A$2,'الكشف المطلوب'!$A$2:$A$33,0),MATCH(استعلام!$A14,'الكشف المطلوب'!$C$1:$EK$1,0))","v":8},"M103",{"$f":"INDEX('الكشف المطلوب'!$C$2:$EJ$33,MATCH(استعلام!$A$2,'الكشف المطلوب'!$A$2:$A$33,0),MATCH(استعلام!$C14,'الكشف المطلوب'!$C$1:$EK$1,0))","v":0},"N64",{"$f":"INDEX('الكشف المطلوب'!$C$2:$EJ$33,MATCH(استعلام!$A$2,'الكشف المطلوب'!$A$2:$A$33,0),MATCH(استعلام!$E14,'الكشف المطلوب'!$C$1:$EK$1,0))","v":0},"M13",{"$f":"INDEX('الكشف المنفذ'!$C$2:$EJ$33,MATCH(استعلام!$A$2,'الكشف المنفذ'!$A$2:$A$33,0),MATCH(استعلام!$G14,'الكشف المنفذ'!$C$1:$EK$1,0))","v":0},"M103",{"$f":"INDEX('الكشف المنفذ'!$C$2:$EJ$33,MATCH(استعلام!$A$2,'الكشف المنفذ'!$A$2:$A$33,0),MATCH(استعلام!$I14,'الكشف المنفذ'!$C$1:$EK$1,0))","v":0},"N64",{"$f":"INDEX('الكشف المنفذ'!$C$2:$EJ$33,MATCH(استعلام!$A$2,'الكشف المنفذ'!$A$2:$A$33,0),MATCH(استعلام!$K14,'الكشف المنفذ'!$C$1:$EK$1,0))","v":0}]
["M14",{"$f":"INDEX('الكشف المطلوب'!$C$2:$EJ$33,MATCH(استعلام!$A$2,'الكشف المطلوب'!$A$2:$A$33,0),MATCH(استعلام!$A15,'الكشف المطلوب'!$C$1:$EK$1,0))","v":0},"M104",{"$f":"INDEX('الكشف المطلوب'!$C$2:$EJ$33,MATCH(استعلام!$A$2,'الكشف المطلوب'!$A$2:$A$33,0),MATCH(استعلام!$C15,'الكشف المطلوب'!$C$1:$EK$1,0))","v":0},"N65",{"$f":"INDEX('الكشف المطلوب'!$C$2:$EJ$33,MATCH(استعلام!$A$2,'الكشف المطلوب'!$A$2:$A$33,0),MATCH(استعلام!$E15,'الكشف المطلوب'!$C$1:$EK$1,0))","v":0},"M14",{"$f":"INDEX('الكشف المنفذ'!$C$2:$EJ$33,MATCH(استعلام!$A$2,'الكشف المنفذ'!$A$2:$A$33,0),MATCH(استعلام!$G15,'الكشف المنفذ'!$C$1:$EK$1,0))","v":0},"M104",{"$f":"INDEX('الكشف المنفذ'!$C$2:$EJ$33,MATCH(استعلام!$A$2,'الكشف المنفذ'!$A$2:$A$33,0),MATCH(استعلام!$I15,'الكشف المنفذ'!$C$1:$EK$1,0))","v":0},"N65",{"$f":"INDEX('الكشف المنفذ'!$C$2:$EJ$33,MATCH(استعلام!$A$2,'الكشف المنفذ'!$A$2:$A$33,0),MATCH(استعلام!$K15,'الكشف المنفذ'!$C$1:$EK$1,0))","v":0}]
["M17",{"$f":"INDEX('الكشف المطلوب'!$C$2:$EJ$33,MATCH(استعلام!$A$2,'الكشف المطلوب'!$A$2:$A$33,0),MATCH(استعلام!$A16,'الكشف المطلوب'!$C$1:$EK$1,0))","v":0},"M105",{"$f":"INDEX('الكشف المطلوب'!$C$2:$EJ$33,MATCH(استعلام!$A$2,'الكشف المطلوب'!$A$2:$A$33,0),MATCH(استعلام!$C16,'الكشف المطلوب'!$C$1:$EK$1,0))","v":0},"N67",{"$f":"INDEX('الكشف المطلوب'!$C$2:$EJ$33,MATCH(استعلام!$A$2,'الكشف المطلوب'!$A$2:$A$33,0),MATCH(استعلام!$E16,'الكشف المطلوب'!$C$1:$EK$1,0))","v":0},"M17",{"$f":"INDEX('الكشف المنفذ'!$C$2:$EJ$33,MATCH(استعلام!$A$2,'الكشف المنفذ'!$A$2:$A$33,0),MATCH(استعلام!$G16,'الكشف المنفذ'!$C$1:$EK$1,0))","v":0},"M105",{"$f":"INDEX('الكشف المنفذ'!$C$2:$EJ$33,MATCH(استعلام!$A$2,'الكشف المنفذ'!$A$2:$A$33,0),MATCH(استعلام!$I16,'الكشف المنفذ'!$C$1:$EK$1,0))","v":0},"N67",{"$f":"INDEX('الكشف المنفذ'!$C$2:$EJ$33,MATCH(استعلام!$A$2,'الكشف المنفذ'!$A$2:$A$33,0),MATCH(استعلام!$K16,'الكشف المنفذ'!$C$1:$EK$1,0))","v":0}]
["M18",{"$f":"INDEX('الكشف المطلوب'!$C$2:$EJ$33,MATCH(استعلام!$A$2,'الكشف المطلوب'!$A$2:$A$33,0),MATCH(استعلام!$A17,'الكشف المطلوب'!$C$1:$EK$1,0))","v":0},"M106",{"$f":"INDEX('الكشف المطلوب'!$C$2:$EJ$33,MATCH(استعلام!$A$2,'الكشف المطلوب'!$A$2:$A$33,0),MATCH(استعلام!$C17,'الكشف المطلوب'!$C$1:$EK$1,0))","v":15},"N68",{"$f":"INDEX('الكشف المطلوب'!$C$2:$EJ$33,MATCH(استعلام!$A$2,'الكشف المطلوب'!$A$2:$A$33,0),MATCH(استعلام!$E17,'الكشف المطلوب'!$C$1:$EK$1,0))","v":0},"M18",{"$f":"INDEX('الكشف المنفذ'!$C$2:$EJ$33,MATCH(استعلام!$A$2,'الكشف المنفذ'!$A$2:$A$33,0),MATCH(استعلام!$G17,'الكشف المنفذ'!$C$1:$EK$1,0))","v":0},"M106",{"$f":"INDEX('الكشف المنفذ'!$C$2:$EJ$33,MATCH(استعلام!$A$2,'الكشف المنفذ'!$A$2:$A$33,0),MATCH(استعلام!$I17,'الكشف المنفذ'!$C$1:$EK$1,0))","v":0},"N68",{"$f":"INDEX('الكشف المنفذ'!$C$2:$EJ$33,MATCH(استعلام!$A$2,'الكشف المنفذ'!$A$2:$A$33,0),MATCH(استعلام!$K17,'الكشف المنفذ'!$C$1:$EK$1,0))","v":0}]
["M20",{"$f":"INDEX('الكشف المطلوب'!$C$2:$EJ$33,MATCH(استعلام!$A$2,'الكشف المطلوب'!$A$2:$A$33,0),MATCH(استعلام!$A18,'الكشف المطلوب'!$C$1:$EK$1,0))","v":0},"M107",{"$f":"INDEX('الكشف المطلوب'!$C$2:$EJ$33,MATCH(استعلام!$A$2,'الكشف المطلوب'!$A$2:$A$33,0),MATCH(استعلام!$C18,'الكشف المطلوب'!$C$1:$EK$1,0))","v":0},"N69",{"$f":"INDEX('الكشف المطلوب'!$C$2:$EJ$33,MATCH(استعلام!$A$2,'الكشف المطلوب'!$A$2:$A$33,0),MATCH(استعلام!$E18,'الكشف المطلوب'!$C$1:$EK$1,0))","v":0},"M20",{"$f":"INDEX('الكشف المنفذ'!$C$2:$EJ$33,MATCH(استعلام!$A$2,'الكشف المنفذ'!$A$2:$A$33,0),MATCH(استعلام!$G18,'الكشف المنفذ'!$C$1:$EK$1,0))","v":0},"M107",{"$f":"INDEX('الكشف المنفذ'!$C$2:$EJ$33,MATCH(استعلام!$A$2,'الكشف المنفذ'!$A$2:$A$33,0),MATCH(استعلام!$I18,'الكشف المنفذ'!$C$1:$EK$1,0))","v":0},"N69",{"$f":"INDEX('الكشف المنفذ'!$C$2:$EJ$33,MATCH(استعلام!$A$2,'الكشف المنفذ'!$A$2:$A$33,0),MATCH(استعلام!$K18,'الكشف المنفذ'!$C$1:$EK$1,0))","v":0}]
["M22",{"$f":"INDEX('الكشف المطلوب'!$C$2:$EJ$33,MATCH(استعلام!$A$2,'الكشف المطلوب'!$A$2:$A$33,0),MATCH(استعلام!$A19,'الكشف المطلوب'!$C$1:$EK$1,0))","v":0},"M108",{"$f":"INDEX('الكشف المطلوب'!$C$2:$EJ$33,MATCH(استعلام!$A$2,'الكشف المطلوب'!$A$2:$A$33,0),MATCH(استعلام!$C19,'الكشف المطلوب'!$C$1:$EK$1,0))","v":0},"N70",{"$f":"INDEX('الكشف المطلوب'!$C$2:$EJ$33,MATCH(استعلام!$A$2,'الكشف المطلوب'!$A$2:$A$33,0),MATCH(استعلام!$E19,'الكشف المطلوب'!$C$1:$EK$1,0))","v":0},"M22",{"$f":"INDEX('الكشف المنفذ'!$C$2:$EJ$33,MATCH(استعلام!$A$2,'الكشف المنفذ'!$A$2:$A$33,0),MATCH(استعلام!$G19,'الكشف المنفذ'!$C$1:$EK$1,0))","v":0},"M108",{"$f":"INDEX('الكشف المنفذ'!$C$2:$EJ$33,MATCH(استعلام!$A$2,'الكشف المنفذ'!$A$2:$A$33,0),MATCH(استعلام!$I19,'الكشف المنفذ'!$C$1:$EK$1,0))","v":0},"N70",{"$f":"INDEX('الكشف المنفذ'!$C$2:$EJ$33,MATCH(استعلام!$A$2,'الكشف المنفذ'!$A$2:$A$33,0),MATCH(استعلام!$K19,'الكشف المنفذ'!$C$1:$EK$1,0))","v":0}]
["M24",{"$f":"INDEX('الكشف المطلوب'!$C$2:$EJ$33,MATCH(استعلام!$A$2,'الكشف المطلوب'!$A$2:$A$33,0),MATCH(استعلام!$A20,'الكشف المطلوب'!$C$1:$EK$1,0))","v":0},"M109",{"$f":"INDEX('الكشف المطلوب'!$C$2:$EJ$33,MATCH(استعلام!$A$2,'الكشف المطلوب'!$A$2:$A$33,0),MATCH(استعلام!$C20,'الكشف المطلوب'!$C$1:$EK$1,0))","v":0},"N71",{"$f":"INDEX('الكشف المطلوب'!$C$2:$EJ$33,MATCH(استعلام!$A$2,'الكشف المطلوب'!$A$2:$A$33,0),MATCH(استعلام!$E20,'الكشف المطلوب'!$C$1:$EK$1,0))","v":0},"M24",{"$f":"INDEX('الكشف المنفذ'!$C$2:$EJ$33,MATCH(استعلام!$A$2,'الكشف المنفذ'!$A$2:$A$33,0),MATCH(استعلام!$G20,'الكشف المنفذ'!$C$1:$EK$1,0))","v":0},"M109",{"$f":"INDEX('الكشف المنفذ'!$C$2:$EJ$33,MATCH(استعلام!$A$2,'الكشف المنفذ'!$A$2:$A$33,0),MATCH(استعلام!$I20,'الكشف المنفذ'!$C$1:$EK$1,0))","v":0},"N71",{"$f":"INDEX('الكشف المنفذ'!$C$2:$EJ$33,MATCH(استعلام!$A$2,'الكشف المنفذ'!$A$2:$A$33,0),MATCH(استعلام!$K20,'الكشف المنفذ'!$C$1:$EK$1,0))","v":0}]
["M25",{"$f":"INDEX('الكشف المطلوب'!$C$2:$EJ$33,MATCH(استعلام!$A$2,'الكشف المطلوب'!$A$2:$A$33,0),MATCH(استعلام!$A21,'الكشف المطلوب'!$C$1:$EK$1,0))","v":0},"M110",{"$f":"INDEX('الكشف المطلوب'!$C$2:$EJ$33,MATCH(استعلام!$A$2,'الكشف المطلوب'!$A$2:$A$33,0),MATCH(استعلام!$C21,'الكشف المطلوب'!$C$1:$EK$1,0))","v":0},"N74",{"$f":"INDEX('الكشف المطلوب'!$C$2:$EJ$33,MATCH(استعلام!$A$2,'الكشف المطلوب'!$A$2:$A$33,0),MATCH(استعلام!$E21,'الكشف المطلوب'!$C$1:$EK$1,0))","v":0},"M25",{"$f":"INDEX('الكشف المنفذ'!$C$2:$EJ$33,MATCH(استعلام!$A$2,'الكشف المنفذ'!$A$2:$A$33,0),MATCH(استعلام!$G21,'الكشف المنفذ'!$C$1:$EK$1,0))","v":0},"M110",{"$f":"INDEX('الكشف المنفذ'!$C$2:$EJ$33,MATCH(استعلام!$A$2,'الكشف المنفذ'!$A$2:$A$33,0),MATCH(استعلام!$I21,'الكشف المنفذ'!$C$1:$EK$1,0))","v":0},"N74",{"$f":"INDEX('الكشف المنفذ'!$C$2:$EJ$33,MATCH(استعلام!$A$2,'الكشف المنفذ'!$A$2:$A$33,0),MATCH(استعلام!$K21,'الكشف المنفذ'!$C$1:$EK$1,0))","v":0}]
["M27",{"$f":"INDEX('الكشف المطلوب'!$C$2:$EJ$33,MATCH(استعلام!$A$2,'الكشف المطلوب'!$A$2:$A$33,0),MATCH(استعلام!$A22,'الكشف المطلوب'!$C$1:$EK$1,0))","v":5},"M111",{"$f":"INDEX('الكشف المطلوب'!$C$2:$EJ$33,MATCH(استعلام!$A$2,'الكشف المطلوب'!$A$2:$A$33,0),MATCH(استعلام!$C22,'الكشف المطلوب'!$C$1:$EK$1,0))","v":20},"N76",{"$f":"INDEX('الكشف المطلوب'!$C$2:$EJ$33,MATCH(استعلام!$A$2,'الكشف المطلوب'!$A$2:$A$33,0),MATCH(استعلام!$E22,'الكشف المطلوب'!$C$1:$EK$1,0))","v":0},"M27",{"$f":"INDEX('الكشف المنفذ'!$C$2:$EJ$33,MATCH(استعلام!$A$2,'الكشف المنفذ'!$A$2:$A$33,0),MATCH(استعلام!$G22,'الكشف المنفذ'!$C$1:$EK$1,0))","v":0},"M111",{"$f":"INDEX('الكشف المنفذ'!$C$2:$EJ$33,MATCH(استعلام!$A$2,'الكشف المنفذ'!$A$2:$A$33,0),MATCH(استعلام!$I22,'الكشف المنفذ'!$C$1:$EK$1,0))","v":0},"N76",{"$f":"INDEX('الكشف المنفذ'!$C$2:$EJ$33,MATCH(استعلام!$A$2,'الكشف المنفذ'!$A$2:$A$33,0),MATCH(استعلام!$K22,'الكشف المنفذ'!$C$1:$EK$1,0))","v":0}]
["M28",{"$f":"INDEX('الكشف المطلوب'!$C$2:$EJ$33,MATCH(استعلام!$A$2,'الكشف المطلوب'!$A$2:$A$33,0),MATCH(استعلام!$A23,'الكشف المطلوب'!$C$1:$EK$1,0))","v":0},"M112",{"$f":"INDEX('الكشف المطلوب'!$C$2:$EJ$33,MATCH(استعلام!$A$2,'الكشف المطلوب'!$A$2:$A$33,0),MATCH(استعلام!$C23,'الكشف المطلوب'!$C$1:$EK$1,0))","v":0},"N77",{"$f":"INDEX('الكشف المطلوب'!$C$2:$EJ$33,MATCH(استعلام!$A$2,'الكشف المطلوب'!$A$2:$A$33,0),MATCH(استعلام!$E23,'الكشف المطلوب'!$C$1:$EK$1,0))","v":0},"M28",{"$f":"INDEX('الكشف المنفذ'!$C$2:$EJ$33,MATCH(استعلام!$A$2,'الكشف المنفذ'!$A$2:$A$33,0),MATCH(استعلام!$G23,'الكشف المنفذ'!$C$1:$EK$1,0))","v":0},"M112",{"$f":"INDEX('الكشف المنفذ'!$C$2:$EJ$33,MATCH(استعلام!$A$2,'الكشف المنفذ'!$A$2:$A$33,0),MATCH(استعلام!$I23,'الكشف المنفذ'!$C$1:$EK$1,0))","v":0},"N77",{"$f":"INDEX('الكشف المنفذ'!$C$2:$EJ$33,MATCH(استعلام!$A$2,'الكشف المنفذ'!$A$2:$A$33,0),MATCH(استعلام!$K23,'الكشف المنفذ'!$C$1:$EK$1,0))","v":0}]
["M29",{"$f":"INDEX('الكشف المطلوب'!$C$2:$EJ$33,MATCH(استعلام!$A$2,'الكشف المطلوب'!$A$2:$A$33,0),MATCH(استعلام!$A24,'الكشف المطلوب'!$C$1:$EK$1,0))","v":5},"M113",{"$f":"INDEX('الكشف المطلوب'!$C$2:$EJ$33,MATCH(استعلام!$A$2,'الكشف المطلوب'!$A$2:$A$33,0),MATCH(استعلام!$C24,'الكشف المطلوب'!$C$1:$EK$1,0))","v":0},"N78",{"$f":"INDEX('الكشف المطلوب'!$C$2:$EJ$33,MATCH(استعلام!$A$2,'الكشف المطلوب'!$A$2:$A$33,0),MATCH(استعلام!$E24,'الكشف المطلوب'!$C$1:$EK$1,0))","v":10},"M29",{"$f":"INDEX('الكشف المنفذ'!$C$2:$EJ$33,MATCH(استعلام!$A$2,'الكشف المنفذ'!$A$2:$A$33,0),MATCH(استعلام!$G24,'الكشف المنفذ'!$C$1:$EK$1,0))","v":0},"M113",{"$f":"INDEX('الكشف المنفذ'!$C$2:$EJ$33,MATCH(استعلام!$A$2,'الكشف المنفذ'!$A$2:$A$33,0),MATCH(استعلام!$I24,'الكشف المنفذ'!$C$1:$EK$1,0))","v":0},"N78",{"$f":"INDEX('الكشف المنفذ'!$C$2:$EJ$33,MATCH(استعلام!$A$2,'الكشف المنفذ'!$A$2:$A$33,0),MATCH(استعلام!$K24,'الكشف المنفذ'!$C$1:$EK$1,0))","v":0}]
["M30",{"$f":"INDEX('الكشف المطلوب'!$C$2:$EJ$33,MATCH(استعلام!$A$2,'الكشف المطلوب'!$A$2:$A$33,0),MATCH(استعلام!$A25,'الكشف المطلوب'!$C$1:$EK$1,0))","v":0},"M114",{"$f":"INDEX('الكشف المطلوب'!$C$2:$EJ$33,MATCH(استعلام!$A$2,'الكشف المطلوب'!$A$2:$A$33,0),MATCH(استعلام!$C25,'الكشف المطلوب'!$C$1:$EK$1,0))","v":0},"N79",{"$f":"INDEX('الكشف المطلوب'!$C$2:$EJ$33,MATCH(استعلام!$A$2,'الكشف المطلوب'!$A$2:$A$33,0),MATCH(استعلام!$E25,'الكشف المطلوب'!$C$1:$EK$1,0))","v":0},"M30",{"$f":"INDEX('الكشف المنفذ'!$C$2:$EJ$33,MATCH(استعلام!$A$2,'الكشف المنفذ'!$A$2:$A$33,0),MATCH(استعلام!$G25,'الكشف المنفذ'!$C$1:$EK$1,0))","v":0},"M114",{"$f":"INDEX('الكشف المنفذ'!$C$2:$EJ$33,MATCH(استعلام!$A$2,'الكشف المنفذ'!$A$2:$A$33,0),MATCH(استعلام!$I25,'الكشف المنفذ'!$C$1:$EK$1,0))","v":0},"N79",{"$f":"INDEX('الكشف المنفذ'!$C$2:$EJ$33,MATCH(استعلام!$A$2,'الكشف المنفذ'!$A$2:$A$33,0),MATCH(استعلام!$K25,'الكشف المنفذ'!$C$1:$EK$1,0))","v":0}]
["M31",{"$f":"INDEX('الكشف المطلوب'!$C$2:$EJ$33,MATCH(استعلام!$A$2,'الكشف المطلوب'!$A$2:$A$33,0),MATCH(استعلام!$A26,'الكشف المطلوب'!$C$1:$EK$1,0))","v":20},"M115",{"$f":"INDEX('الكشف المطلوب'!$C$2:$EJ$33,MATCH(استعلام!$A$2,'الكشف المطلوب'!$A$2:$A$33,0),MATCH(استعلام!$C26,'الكشف المطلوب'!$C$1:$EK$1,0))","v":0},"N80",{"$f":"INDEX('الكشف المطلوب'!$C$2:$EJ$33,MATCH(استعلام!$A$2,'الكشف المطلوب'!$A$2:$A$33,0),MATCH(استعلام!$E26,'الكشف المطلوب'!$C$1:$EK$1,0))","v":15},"M31",{"$f":"INDEX('الكشف المنفذ'!$C$2:$EJ$33,MATCH(استعلام!$A$2,'الكشف المنفذ'!$A$2:$A$33,0),MATCH(استعلام!$G26,'الكشف المنفذ'!$C$1:$EK$1,0))","v":0},"M115",{"$f":"INDEX('الكشف المنفذ'!$C$2:$EJ$33,MATCH(استعلام!$A$2,'الكشف المنفذ'!$A$2:$A$33,0),MATCH(استعلام!$I26,'الكشف المنفذ'!$C$1:$EK$1,0))","v":0},"N80",{"$f":"INDEX('الكشف المنفذ'!$C$2:$EJ$33,MATCH(استعلام!$A$2,'الكشف المنفذ'!$A$2:$A$33,0),MATCH(استعلام!$K26,'الكشف المنفذ'!$C$1:$EK$1,0))","v":0}]
["M32",{"$f":"INDEX('الكشف المطلوب'!$C$2:$EJ$33,MATCH(استعلام!$A$2,'الكشف المطلوب'!$A$2:$A$33,0),MATCH(استعلام!$A27,'الكشف المطلوب'!$C$1:$EK$1,0))","v":4},"M116",{"$f":"INDEX('الكشف المطلوب'!$C$2:$EJ$33,MATCH(استعلام!$A$2,'الكشف المطلوب'!$A$2:$A$33,0),MATCH(استعلام!$C27,'الكشف المطلوب'!$C$1:$EK$1,0))","v":0},"N81",{"$f":"INDEX('الكشف المطلوب'!$C$2:$EJ$33,MATCH(استعلام!$A$2,'الكشف المطلوب'!$A$2:$A$33,0),MATCH(استعلام!$E27,'الكشف المطلوب'!$C$1:$EK$1,0))","v":20},"M32",{"$f":"INDEX('الكشف المنفذ'!$C$2:$EJ$33,MATCH(استعلام!$A$2,'الكشف المنفذ'!$A$2:$A$33,0),MATCH(استعلام!$G27,'الكشف المنفذ'!$C$1:$EK$1,0))","v":0},"M116",{"$f":"INDEX('الكشف المنفذ'!$C$2:$EJ$33,MATCH(استعلام!$A$2,'الكشف المنفذ'!$A$2:$A$33,0),MATCH(استعلام!$I27,'الكشف المنفذ'!$C$1:$EK$1,0))","v":0},"N81",{"$f":"INDEX('الكشف المنفذ'!$C$2:$EJ$33,MATCH(استعلام!$A$2,'الكشف المنفذ'!$A$2:$A$33,0),MATCH(استعلام!$K27,'الكشف المنفذ'!$C$1:$EK$1,0))","v":0}]
["M33",{"$f":"INDEX('الكشف المطلوب'!$C$2:$EJ$33,MATCH(استعلام!$A$2,'الكشف المطلوب'!$A$2:$A$33,0),MATCH(استعلام!$A28,'الكشف المطلوب'!$C$1:$EK$1,0))","v":0},"N2",{"$f":"INDEX('الكشف المطلوب'!$C$2:$EJ$33,MATCH(استعلام!$A$2,'الكشف المطلوب'!$A$2:$A$33,0),MATCH(استعلام!$C28,'الكشف المطلوب'!$C$1:$EK$1,0))","v":0},"N82",{"$f":"INDEX('الكشف المطلوب'!$C$2:$EJ$33,MATCH(استعلام!$A$2,'الكشف المطلوب'!$A$2:$A$33,0),MATCH(استعلام!$E28,'الكشف المطلوب'!$C$1:$EK$1,0))","v":0},"M33",{"$f":"INDEX('الكشف المنفذ'!$C$2:$EJ$33,MATCH(استعلام!$A$2,'الكشف المنفذ'!$A$2:$A$33,0),MATCH(استعلام!$G28,'الكشف المنفذ'!$C$1:$EK$1,0))","v":0},"N2",{"$f":"INDEX('الكشف المنفذ'!$C$2:$EJ$33,MATCH(استعلام!$A$2,'الكشف المنفذ'!$A$2:$A$33,0),MATCH(استعلام!$I28,'الكشف المنفذ'!$C$1:$EK$1,0))","v":0},"N82",{"$f":"INDEX('الكشف المنفذ'!$C$2:$EJ$33,MATCH(استعلام!$A$2,'الكشف المنفذ'!$A$2:$A$33,0),MATCH(استعلام!$K28,'الكشف المنفذ'!$C$1:$EK$1,0))","v":0}]
["M34",{"$f":"INDEX('الكشف المطلوب'!$C$2:$EJ$33,MATCH(استعلام!$A$2,'الكشف المطلوب'!$A$2:$A$33,0),MATCH(استعلام!$A29,'الكشف المطلوب'!$C$1:$EK$1,0))","v":0},"N7",{"$f":"INDEX('الكشف المطلوب'!$C$2:$EJ$33,MATCH(استعلام!$A$2,'الكشف المطلوب'!$A$2:$A$33,0),MATCH(استعلام!$C29,'الكشف المطلوب'!$C$1:$EK$1,0))","v":10},"N83",{"$f":"INDEX('الكشف المطلوب'!$C$2:$EJ$33,MATCH(استعلام!$A$2,'الكشف المطلوب'!$A$2:$A$33,0),MATCH(استعلام!$E29,'الكشف المطلوب'!$C$1:$EK$1,0))","v":0},"M34",{"$f":"INDEX('الكشف المنفذ'!$C$2:$EJ$33,MATCH(استعلام!$A$2,'الكشف المنفذ'!$A$2:$A$33,0),MATCH(استعلام!$G29,'الكشف المنفذ'!$C$1:$EK$1,0))","v":0},"N7",{"$f":"INDEX('الكشف المنفذ'!$C$2:$EJ$33,MATCH(استعلام!$A$2,'الكشف المنفذ'!$A$2:$A$33,0),MATCH(استعلام!$I29,'الكشف المنفذ'!$C$1:$EK$1,0))","v":0},"N83",{"$f":"INDEX('الكشف المنفذ'!$C$2:$EJ$33,MATCH(استعلام!$A$2,'الكشف المنفذ'!$A$2:$A$33,0),MATCH(استعلام!$K29,'الكشف المنفذ'!$C$1:$EK$1,0))","v":0}]
["M35",{"$f":"INDEX('الكشف المطلوب'!$C$2:$EJ$33,MATCH(استعلام!$A$2,'الكشف المطلوب'!$A$2:$A$33,0),MATCH(استعلام!$A30,'الكشف المطلوب'!$C$1:$EK$1,0))","v":0},"N8",{"$f":"INDEX('الكشف المطلوب'!$C$2:$EJ$33,MATCH(استعلام!$A$2,'الكشف المطلوب'!$A$2:$A$33,0),MATCH(استعلام!$C30,'الكشف المطلوب'!$C$1:$EK$1,0))","v":5},"N84",{"$f":"INDEX('الكشف المطلوب'!$C$2:$EJ$33,MATCH(استعلام!$A$2,'الكشف المطلوب'!$A$2:$A$33,0),MATCH(استعلام!$E30,'الكشف المطلوب'!$C$1:$EK$1,0))","v":0},"M35",{"$f":"INDEX('الكشف المنفذ'!$C$2:$EJ$33,MATCH(استعلام!$A$2,'الكشف المنفذ'!$A$2:$A$33,0),MATCH(استعلام!$G30,'الكشف المنفذ'!$C$1:$EK$1,0))","v":0},"N8",{"$f":"INDEX('الكشف المنفذ'!$C$2:$EJ$33,MATCH(استعلام!$A$2,'الكشف المنفذ'!$A$2:$A$33,0),MATCH(استعلام!$I30,'الكشف المنفذ'!$C$1:$EK$1,0))","v":0},"N84",{"$f":"INDEX('الكشف المنفذ'!$C$2:$EJ$33,MATCH(استعلام!$A$2,'الكشف المنفذ'!$A$2:$A$33,0),MATCH(استعلام!$K30,'الكشف المنفذ'!$C$1:$EK$1,0))","v":0}]
["M36",{"$f":"INDEX('الكشف المطلوب'!$C$2:$EJ$33,MATCH(استعلام!$A$2,'الكشف المطلوب'!$A$2:$A$33,0),MATCH(استعلام!$A31,'الكشف المطلوب'!$C$1:$EK$1,0))","v":4},"N9",{"$f":"INDEX('الكشف المطلوب'!$C$2:$EJ$33,MATCH(استعلام!$A$2,'الكشف المطلوب'!$A$2:$A$33,0),MATCH(استعلام!$C31,'الكشف المطلوب'!$C$1:$EK$1,0))","v":0},"N85",{"$f":"INDEX('الكشف المطلوب'!$C$2:$EJ$33,MATCH(استعلام!$A$2,'الكشف المطلوب'!$A$2:$A$33,0),MATCH(استعلام!$E31,'الكشف المطلوب'!$C$1:$EK$1,0))","v":0},"M36",{"$f":"INDEX('الكشف المنفذ'!$C$2:$EJ$33,MATCH(استعلام!$A$2,'الكشف المنفذ'!$A$2:$A$33,0),MATCH(استعلام!$G31,'الكشف المنفذ'!$C$1:$EK$1,0))","v":0},"N9",{"$f":"INDEX('الكشف المنفذ'!$C$2:$EJ$33,MATCH(استعلام!$A$2,'الكشف المنفذ'!$A$2:$A$33,0),MATCH(استعلام!$I31,'الكشف المنفذ'!$C$1:$EK$1,0))","v":0},"N85",{"$f":"INDEX('الكشف المنفذ'!$C$2:$EJ$33,MATCH(استعلام!$A$2,'الكشف المنفذ'!$A$2:$A$33,0),MATCH(استعلام!$K31,'الكشف المنفذ'!$C$1:$EK$1,0))","v":0}]
["M37",{"$f":"INDEX('الكشف المطلوب'!$C$2:$EJ$33,MATCH(استعلام!$A$2,'الكشف المطلوب'!$A$2:$A$33,0),MATCH(استعلام!$A32,'الكشف المطلوب'!$C$1:$EK$1,0))","v":0},"N15",{"$f":"INDEX('الكشف المطلوب'!$C$2:$EJ$33,MATCH(استعلام!$A$2,'الكشف المطلوب'!$A$2:$A$33,0),MATCH(استعلام!$C32,'الكشف المطلوب'!$C$1:$EK$1,0))","v":0},"N86",{"$f":"INDEX('الكشف المطلوب'!$C$2:$EJ$33,MATCH(استعلام!$A$2,'الكشف المطلوب'!$A$2:$A$33,0),MATCH(استعلام!$E32,'الكشف المطلوب'!$C$1:$EK$1,0))","v":0},"M37",{"$f":"INDEX('الكشف المنفذ'!$C$2:$EJ$33,MATCH(استعلام!$A$2,'الكشف المنفذ'!$A$2:$A$33,0),MATCH(استعلام!$G32,'الكشف المنفذ'!$C$1:$EK$1,0))","v":0},"N15",{"$f":"INDEX('الكشف المنفذ'!$C$2:$EJ$33,MATCH(استعلام!$A$2,'الكشف المنفذ'!$A$2:$A$33,0),MATCH(استعلام!$I32,'الكشف المنفذ'!$C$1:$EK$1,0))","v":0},"N86",{"$f":"INDEX('الكشف المنفذ'!$C$2:$EJ$33,MATCH(استعلام!$A$2,'الكشف المنفذ'!$A$2:$A$33,0),MATCH(استعلام!$K32,'الكشف المنفذ'!$C$1:$EK$1,0))","v":0}]
["M38",{"$f":"INDEX('الكشف المطلوب'!$C$2:$EJ$33,MATCH(استعلام!$A$2,'الكشف المطلوب'!$A$2:$A$33,0),MATCH(استعلام!$A33,'الكشف المطلوب'!$C$1:$EK$1,0))","v":4},"N16",{"$f":"INDEX('الكشف المطلوب'!$C$2:$EJ$33,MATCH(استعلام!$A$2,'الكشف المطلوب'!$A$2:$A$33,0),MATCH(استعلام!$C33,'الكشف المطلوب'!$C$1:$EK$1,0))","v":0},"N87",{"$f":"INDEX('الكشف المطلوب'!$C$2:$EJ$33,MATCH(استعلام!$A$2,'الكشف المطلوب'!$A$2:$A$33,0),MATCH(استعلام!$E33,'الكشف المطلوب'!$C$1:$EK$1,0))","v":0},"M38",{"$f":"INDEX('الكشف المنفذ'!$C$2:$EJ$33,MATCH(استعلام!$A$2,'الكشف المنفذ'!$A$2:$A$33,0),MATCH(استعلام!$G33,'الكشف المنفذ'!$C$1:$EK$1,0))","v":0},"N16",{"$f":"INDEX('الكشف المنفذ'!$C$2:$EJ$33,MATCH(استعلام!$A$2,'الكشف المنفذ'!$A$2:$A$33,0),MATCH(استعلام!$I33,'الكشف المنفذ'!$C$1:$EK$1,0))","v":0},"N87",{"$f":"INDEX('الكشف المنفذ'!$C$2:$EJ$33,MATCH(استعلام!$A$2,'الكشف المنفذ'!$A$2:$A$33,0),MATCH(استعلام!$K33,'الكشف المنفذ'!$C$1:$EK$1,0))","v":0}]
["M39",{"$f":"INDEX('الكشف المطلوب'!$C$2:$EJ$33,MATCH(استعلام!$A$2,'الكشف المطلوب'!$A$2:$A$33,0),MATCH(استعلام!$A34,'الكشف المطلوب'!$C$1:$EK$1,0))","v":0},"N17",{"$f":"INDEX('الكشف المطلوب'!$C$2:$EJ$33,MATCH(استعلام!$A$2,'الكشف المطلوب'!$A$2:$A$33,0),MATCH(استعلام!$C34,'الكشف المطلوب'!$C$1:$EK$1,0))","v":0},"N91",{"$f":"INDEX('الكشف المطلوب'!$C$2:$EJ$33,MATCH(استعلام!$A$2,'الكشف المطلوب'!$A$2:$A$33,0),MATCH(استعلام!$E34,'الكشف المطلوب'!$C$1:$EK$1,0))","v":10},"M39",{"$f":"INDEX('الكشف المنفذ'!$C$2:$EJ$33,MATCH(استعلام!$A$2,'الكشف المنفذ'!$A$2:$A$33,0),MATCH(استعلام!$G34,'الكشف المنفذ'!$C$1:$EK$1,0))","v":0},"N17",{"$f":"INDEX('الكشف المنفذ'!$C$2:$EJ$33,MATCH(استعلام!$A$2,'الكشف المنفذ'!$A$2:$A$33,0),MATCH(استعلام!$I34,'الكشف المنفذ'!$C$1:$EK$1,0))","v":0},"N91",{"$f":"INDEX('الكشف المنفذ'!$C$2:$EJ$33,MATCH(استعلام!$A$2,'الكشف المنفذ'!$A$2:$A$33,0),MATCH(استعلام!$K34,'الكشف المنفذ'!$C$1:$EK$1,0))","v":0}]
["M40",{"$f":"INDEX('الكشف المطلوب'!$C$2:$EJ$33,MATCH(استعلام!$A$2,'الكشف المطلوب'!$A$2:$A$33,0),MATCH(استعلام!$A35,'الكشف المطلوب'!$C$1:$EK$1,0))","v":0},"N18",{"$f":"INDEX('الكشف المطلوب'!$C$2:$EJ$33,MATCH(استعلام!$A$2,'الكشف المطلوب'!$A$2:$A$33,0),MATCH(استعلام!$C35,'الكشف المطلوب'!$C$1:$EK$1,0))","v":0},"N92",{"$f":"INDEX('الكشف المطلوب'!$C$2:$EJ$33,MATCH(استعلام!$A$2,'الكشف المطلوب'!$A$2:$A$33,0),MATCH(استعلام!$E35,'الكشف المطلوب'!$C$1:$EK$1,0))","v":0},"M40",{"$f":"INDEX('الكشف المنفذ'!$C$2:$EJ$33,MATCH(استعلام!$A$2,'الكشف المنفذ'!$A$2:$A$33,0),MATCH(استعلام!$G35,'الكشف المنفذ'!$C$1:$EK$1,0))","v":0},"N18",{"$f":"INDEX('الكشف المنفذ'!$C$2:$EJ$33,MATCH(استعلام!$A$2,'الكشف المنفذ'!$A$2:$A$33,0),MATCH(استعلام!$I35,'الكشف المنفذ'!$C$1:$EK$1,0))","v":0},"N92",{"$f":"INDEX('الكشف المنفذ'!$C$2:$EJ$33,MATCH(استعلام!$A$2,'الكشف المنفذ'!$A$2:$A$33,0),MATCH(استعلام!$K35,'الكشف المنفذ'!$C$1:$EK$1,0))","v":0}]
["M41",{"$f":"INDEX('الكشف المطلوب'!$C$2:$EJ$33,MATCH(استعلام!$A$2,'الكشف المطلوب'!$A$2:$A$33,0),MATCH(استعلام!$A36,'الكشف المطلوب'!$C$1:$EK$1,0))","v":0},"N20",{"$f":"INDEX('الكشف المطلوب'!$C$2:$EJ$33,MATCH(استعلام!$A$2,'الكشف المطلوب'!$A$2:$A$33,0),MATCH(استعلام!$C36,'الكشف المطلوب'!$C$1:$EK$1,0))","v":0},"N97",{"$f":"INDEX('الكشف المطلوب'!$C$2:$EJ$33,MATCH(استعلام!$A$2,'الكشف المطلوب'!$A$2:$A$33,0),MATCH(استعلام!$E36,'الكشف المطلوب'!$C$1:$EK$1,0))","v":25},"M41",{"$f":"INDEX('الكشف المنفذ'!$C$2:$EJ$33,MATCH(استعلام!$A$2,'الكشف المنفذ'!$A$2:$A$33,0),MATCH(استعلام!$G36,'الكشف المنفذ'!$C$1:$EK$1,0))","v":0},"N20",{"$f":"INDEX('الكشف المنفذ'!$C$2:$EJ$33,MATCH(استعلام!$A$2,'الكشف المنفذ'!$A$2:$A$33,0),MATCH(استعلام!$I36,'الكشف المنفذ'!$C$1:$EK$1,0))","v":0},"N97",{"$f":"INDEX('الكشف المنفذ'!$C$2:$EJ$33,MATCH(استعلام!$A$2,'الكشف المنفذ'!$A$2:$A$33,0),MATCH(استعلام!$K36,'الكشف المنفذ'!$C$1:$EK$1,0))","v":0}]
["M42",{"$f":"INDEX('الكشف المطلوب'!$C$2:$EJ$33,MATCH(استعلام!$A$2,'الكشف المطلوب'!$A$2:$A$33,0),MATCH(استعلام!$A37,'الكشف المطلوب'!$C$1:$EK$1,0))","v":0},"N21",{"$f":"INDEX('الكشف المطلوب'!$C$2:$EJ$33,MATCH(استعلام!$A$2,'الكشف المطلوب'!$A$2:$A$33,0),MATCH(استعلام!$C37,'الكشف المطلوب'!$C$1:$EK$1,0))","v":0},"N100",{"$f":"INDEX('الكشف المطلوب'!$C$2:$EJ$33,MATCH(استعلام!$A$2,'الكشف المطلوب'!$A$2:$A$33,0),MATCH(استعلام!$E37,'الكشف المطلوب'!$C$1:$EK$1,0))","v":10},"M42",{"$f":"INDEX('الكشف المنفذ'!$C$2:$EJ$33,MATCH(استعلام!$A$2,'الكشف المنفذ'!$A$2:$A$33,0),MATCH(استعلام!$G37,'الكشف المنفذ'!$C$1:$EK$1,0))","v":0},"N21",{"$f":"INDEX('الكشف المنفذ'!$C$2:$EJ$33,MATCH(استعلام!$A$2,'الكشف المنفذ'!$A$2:$A$33,0),MATCH(استعلام!$I37,'الكشف المنفذ'!$C$1:$EK$1,0))","v":0},"N100",{"$f":"INDEX('الكشف المنفذ'!$C$2:$EJ$33,MATCH(استعلام!$A$2,'الكشف المنفذ'!$A$2:$A$33,0),MATCH(استعلام!$K37,'الكشف المنفذ'!$C$1:$EK$1,0))","v":0}]
["M47",{"$f":"INDEX('الكشف المطلوب'!$C$2:$EJ$33,MATCH(استعلام!$A$2,'الكشف المطلوب'!$A$2:$A$33,0),MATCH(استعلام!$A38,'الكشف المطلوب'!$C$1:$EK$1,0))","v":0},"N22",{"$f":"INDEX('الكشف المطلوب'!$C$2:$EJ$33,MATCH(استعلام!$A$2,'الكشف المطلوب'!$A$2:$A$33,0),MATCH(استعلام!$C38,'الكشف المطلوب'!$C$1:$EK$1,0))","v":8},"N104",{"$f":"INDEX('الكشف المطلوب'!$C$2:$EJ$33,MATCH(استعلام!$A$2,'الكشف المطلوب'!$A$2:$A$33,0),MATCH(استعلام!$E38,'الكشف المطلوب'!$C$1:$EK$1,0))","v":5},"M47",{"$f":"INDEX('الكشف المنفذ'!$C$2:$EJ$33,MATCH(استعلام!$A$2,'الكشف المنفذ'!$A$2:$A$33,0),MATCH(استعلام!$G38,'الكشف المنفذ'!$C$1:$EK$1,0))","v":0},"N22",{"$f":"INDEX('الكشف المنفذ'!$C$2:$EJ$33,MATCH(استعلام!$A$2,'الكشف المنفذ'!$A$2:$A$33,0),MATCH(استعلام!$I38,'الكشف المنفذ'!$C$1:$EK$1,0))","v":0},"N104",{"$f":"INDEX('الكشف المنفذ'!$C$2:$EJ$33,MATCH(استعلام!$A$2,'الكشف المنفذ'!$A$2:$A$33,0),MATCH(استعلام!$K38,'الكشف المنفذ'!$C$1:$EK$1,0))","v":0}]
["M52",{"$f":"INDEX('الكشف المطلوب'!$C$2:$EJ$33,MATCH(استعلام!$A$2,'الكشف المطلوب'!$A$2:$A$33,0),MATCH(استعلام!$A39,'الكشف المطلوب'!$C$1:$EK$1,0))","v":8},"N23",{"$f":"INDEX('الكشف المطلوب'!$C$2:$EJ$33,MATCH(استعلام!$A$2,'الكشف المطلوب'!$A$2:$A$33,0),MATCH(استعلام!$C39,'الكشف المطلوب'!$C$1:$EK$1,0))","v":10},"N105",{"$f":"INDEX('الكشف المطلوب'!$C$2:$EJ$33,MATCH(استعلام!$A$2,'الكشف المطلوب'!$A$2:$A$33,0),MATCH(استعلام!$E39,'الكشف المطلوب'!$C$1:$EK$1,0))","v":0},"M52",{"$f":"INDEX('الكشف المنفذ'!$C$2:$EJ$33,MATCH(استعلام!$A$2,'الكشف المنفذ'!$A$2:$A$33,0),MATCH(استعلام!$G39,'الكشف المنفذ'!$C$1:$EK$1,0))","v":0},"N23",{"$f":"INDEX('الكشف المنفذ'!$C$2:$EJ$33,MATCH(استعلام!$A$2,'الكشف المنفذ'!$A$2:$A$33,0),MATCH(استعلام!$I39,'الكشف المنفذ'!$C$1:$EK$1,0))","v":0},"N105",{"$f":"INDEX('الكشف المنفذ'!$C$2:$EJ$33,MATCH(استعلام!$A$2,'الكشف المنفذ'!$A$2:$A$33,0),MATCH(استعلام!$K39,'الكشف المنفذ'!$C$1:$EK$1,0))","v":0}]
["M53",{"$f":"INDEX('الكشف المطلوب'!$C$2:$EJ$33,MATCH(استعلام!$A$2,'الكشف المطلوب'!$A$2:$A$33,0),MATCH(استعلام!$A40,'الكشف المطلوب'!$C$1:$EK$1,0))","v":6},"N24",{"$f":"INDEX('الكشف المطلوب'!$C$2:$EJ$33,MATCH(استعلام!$A$2,'الكشف المطلوب'!$A$2:$A$33,0),MATCH(استعلام!$C40,'الكشف المطلوب'!$C$1:$EK$1,0))","v":10},"N106",{"$f":"INDEX('الكشف المطلوب'!$C$2:$EJ$33,MATCH(استعلام!$A$2,'الكشف المطلوب'!$A$2:$A$33,0),MATCH(استعلام!$E40,'الكشف المطلوب'!$C$1:$EK$1,0))","v":15},"M53",{"$f":"INDEX('الكشف المنفذ'!$C$2:$EJ$33,MATCH(استعلام!$A$2,'الكشف المنفذ'!$A$2:$A$33,0),MATCH(استعلام!$G40,'الكشف المنفذ'!$C$1:$EK$1,0))","v":0},"N24",{"$f":"INDEX('الكشف المنفذ'!$C$2:$EJ$33,MATCH(استعلام!$A$2,'الكشف المنفذ'!$A$2:$A$33,0),MATCH(استعلام!$I40,'الكشف المنفذ'!$C$1:$EK$1,0))","v":0},"N106",{"$f":"INDEX('الكشف المنفذ'!$C$2:$EJ$33,MATCH(استعلام!$A$2,'الكشف المنفذ'!$A$2:$A$33,0),MATCH(استعلام!$K40,'الكشف المنفذ'!$C$1:$EK$1,0))","v":0}]
["M54",{"$f":"INDEX('الكشف المطلوب'!$C$2:$EJ$33,MATCH(استعلام!$A$2,'الكشف المطلوب'!$A$2:$A$33,0),MATCH(استعلام!$A41,'الكشف المطلوب'!$C$1:$EK$1,0))","v":0},"N26",{"$f":"INDEX('الكشف المطلوب'!$C$2:$EJ$33,MATCH(استعلام!$A$2,'الكشف المطلوب'!$A$2:$A$33,0),MATCH(استعلام!$C41,'الكشف المطلوب'!$C$1:$EK$1,0))","v":5},"N108",{"$f":"INDEX('الكشف المطلوب'!$C$2:$EJ$33,MATCH(استعلام!$A$2,'الكشف المطلوب'!$A$2:$A$33,0),MATCH(استعلام!$E41,'الكشف المطلوب'!$C$1:$EK$1,0))","v":0},"M54",{"$f":"INDEX('الكشف المنفذ'!$C$2:$EJ$33,MATCH(استعلام!$A$2,'الكشف المنفذ'!$A$2:$A$33,0),MATCH(استعلام!$G41,'الكشف المنفذ'!$C$1:$EK$1,0))","v":0},"N26",{"$f":"INDEX('الكشف المنفذ'!$C$2:$EJ$33,MATCH(استعلام!$A$2,'الكشف المنفذ'!$A$2:$A$33,0),MATCH(استعلام!$I41,'الكشف المنفذ'!$C$1:$EK$1,0))","v":0},"N108",{"$f":"INDEX('الكشف المنفذ'!$C$2:$EJ$33,MATCH(استعلام!$A$2,'الكشف المنفذ'!$A$2:$A$33,0),MATCH(استعلام!$K41,'الكشف المنفذ'!$C$1:$EK$1,0))","v":0}]
["M59",{"$f":"INDEX('الكشف المطلوب'!$C$2:$EJ$33,MATCH(استعلام!$A$2,'الكشف المطلوب'!$A$2:$A$33,0),MATCH(استعلام!$A42,'الكشف المطلوب'!$C$1:$EK$1,0))","v":10},"N28",{"$f":"INDEX('الكشف المطلوب'!$C$2:$EJ$33,MATCH(استعلام!$A$2,'الكشف المطلوب'!$A$2:$A$33,0),MATCH(استعلام!$C42,'الكشف المطلوب'!$C$1:$EK$1,0))","v":0},"N111",{"$f":"INDEX('الكشف المطلوب'!$C$2:$EJ$33,MATCH(استعلام!$A$2,'الكشف المطلوب'!$A$2:$A$33,0),MATCH(استعلام!$E42,'الكشف المطلوب'!$C$1:$EK$1,0))","v":0},"M59",{"$f":"INDEX('الكشف المنفذ'!$C$2:$EJ$33,MATCH(استعلام!$A$2,'الكشف المنفذ'!$A$2:$A$33,0),MATCH(استعلام!$G42,'الكشف المنفذ'!$C$1:$EK$1,0))","v":0},"N28",{"$f":"INDEX('الكشف المنفذ'!$C$2:$EJ$33,MATCH(استعلام!$A$2,'الكشف المنفذ'!$A$2:$A$33,0),MATCH(استعلام!$I42,'الكشف المنفذ'!$C$1:$EK$1,0))","v":0},"N111",{"$f":"INDEX('الكشف المنفذ'!$C$2:$EJ$33,MATCH(استعلام!$A$2,'الكشف المنفذ'!$A$2:$A$33,0),MATCH(استعلام!$K42,'الكشف المنفذ'!$C$1:$EK$1,0))","v":0}]
["M61",{"$f":"INDEX('الكشف المطلوب'!$C$2:$EJ$33,MATCH(استعلام!$A$2,'الكشف المطلوب'!$A$2:$A$33,0),MATCH(استعلام!$A43,'الكشف المطلوب'!$C$1:$EK$1,0))","v":10},"N29",{"$f":"INDEX('الكشف المطلوب'!$C$2:$EJ$33,MATCH(استعلام!$A$2,'الكشف المطلوب'!$A$2:$A$33,0),MATCH(استعلام!$C43,'الكشف المطلوب'!$C$1:$EK$1,0))","v":0},"N112",{"$f":"INDEX('الكشف المطلوب'!$C$2:$EJ$33,MATCH(استعلام!$A$2,'الكشف المطلوب'!$A$2:$A$33,0),MATCH(استعلام!$E43,'الكشف المطلوب'!$C$1:$EK$1,0))","v":0},"M61",{"$f":"INDEX('الكشف المنفذ'!$C$2:$EJ$33,MATCH(استعلام!$A$2,'الكشف المنفذ'!$A$2:$A$33,0),MATCH(استعلام!$G43,'الكشف المنفذ'!$C$1:$EK$1,0))","v":0},"N29",{"$f":"INDEX('الكشف المنفذ'!$C$2:$EJ$33,MATCH(استعلام!$A$2,'الكشف المنفذ'!$A$2:$A$33,0),MATCH(استعلام!$I43,'الكشف المنفذ'!$C$1:$EK$1,0))","v":0},"N112",{"$f":"INDEX('الكشف المنفذ'!$C$2:$EJ$33,MATCH(استعلام!$A$2,'الكشف المنفذ'!$A$2:$A$33,0),MATCH(استعلام!$K43,'الكشف المنفذ'!$C$1:$EK$1,0))","v":0}]
["M62",{"$f":"INDEX('الكشف المطلوب'!$C$2:$EJ$33,MATCH(استعلام!$A$2,'الكشف المطلوب'!$A$2:$A$33,0),MATCH(استعلام!$A44,'الكشف المطلوب'!$C$1:$EK$1,0))","v":15},"N37",{"$f":"INDEX('الكشف المطلوب'!$C$2:$EJ$33,MATCH(استعلام!$A$2,'الكشف المطلوب'!$A$2:$A$33,0),MATCH(استعلام!$C44,'الكشف المطلوب'!$C$1:$EK$1,0))","v":0},"N113",{"$f":"INDEX('الكشف المطلوب'!$C$2:$EJ$33,MATCH(استعلام!$A$2,'الكشف المطلوب'!$A$2:$A$33,0),MATCH(استعلام!$E44,'الكشف المطلوب'!$C$1:$EK$1,0))","v":0},"M62",{"$f":"INDEX('الكشف المنفذ'!$C$2:$EJ$33,MATCH(استعلام!$A$2,'الكشف المنفذ'!$A$2:$A$33,0),MATCH(استعلام!$G44,'الكشف المنفذ'!$C$1:$EK$1,0))","v":0},"N37",{"$f":"INDEX('الكشف المنفذ'!$C$2:$EJ$33,MATCH(استعلام!$A$2,'الكشف المنفذ'!$A$2:$A$33,0),MATCH(استعلام!$I44,'الكشف المنفذ'!$C$1:$EK$1,0))","v":0},"N113",{"$f":"INDEX('الكشف المنفذ'!$C$2:$EJ$33,MATCH(استعلام!$A$2,'الكشف المنفذ'!$A$2:$A$33,0),MATCH(استعلام!$K44,'الكشف المنفذ'!$C$1:$EK$1,0))","v":0}]
["M63",{"$f":"INDEX('الكشف المطلوب'!$C$2:$EJ$33,MATCH(استعلام!$A$2,'الكشف المطلوب'!$A$2:$A$33,0),MATCH(استعلام!$A45,'الكشف المطلوب'!$C$1:$EK$1,0))","v":10},"N41",{"$f":"INDEX('الكشف المطلوب'!$C$2:$EJ$33,MATCH(استعلام!$A$2,'الكشف المطلوب'!$A$2:$A$33,0),MATCH(استعلام!$C45,'الكشف المطلوب'!$C$1:$EK$1,0))","v":0},"N114",{"$f":"INDEX('الكشف المطلوب'!$C$2:$EJ$33,MATCH(استعلام!$A$2,'الكشف المطلوب'!$A$2:$A$33,0),MATCH(استعلام!$E45,'الكشف المطلوب'!$C$1:$EK$1,0))","v":0},"M63",{"$f":"INDEX('الكشف المنفذ'!$C$2:$EJ$33,MATCH(استعلام!$A$2,'الكشف المنفذ'!$A$2:$A$33,0),MATCH(استعلام!$G45,'الكشف المنفذ'!$C$1:$EK$1,0))","v":0},"N41",{"$f":"INDEX('الكشف المنفذ'!$C$2:$EJ$33,MATCH(استعلام!$A$2,'الكشف المنفذ'!$A$2:$A$33,0),MATCH(استعلام!$I45,'الكشف المنفذ'!$C$1:$EK$1,0))","v":0},"N114",{"$f":"INDEX('الكشف المنفذ'!$C$2:$EJ$33,MATCH(استعلام!$A$2,'الكشف المنفذ'!$A$2:$A$33,0),MATCH(استعلام!$K45,'الكشف المنفذ'!$C$1:$EK$1,0))","v":0}]
["M64",{"$f":"INDEX('الكشف المطلوب'!$C$2:$EJ$33,MATCH(استعلام!$A$2,'الكشف المطلوب'!$A$2:$A$33,0),MATCH(استعلام!$A46,'الكشف المطلوب'!$C$1:$EK$1,0))","v":20},"N43",{"$f":"INDEX('الكشف المطلوب'!$C$2:$EJ$33,MATCH(استعلام!$A$2,'الكشف المطلوب'!$A$2:$A$33,0),MATCH(استعلام!$C46,'الكشف المطلوب'!$C$1:$EK$1,0))","v":0},"N116",{"$f":"INDEX('الكشف المطلوب'!$C$2:$EJ$33,MATCH(استعلام!$A$2,'الكشف المطلوب'!$A$2:$A$33,0),MATCH(استعلام!$E46,'الكشف المطلوب'!$C$1:$EK$1,0))","v":4},"M64",{"$f":"INDEX('الكشف المنفذ'!$C$2:$EJ$33,MATCH(استعلام!$A$2,'الكشف المنفذ'!$A$2:$A$33,0),MATCH(استعلام!$G46,'الكشف المنفذ'!$C$1:$EK$1,0))","v":0},"N43",{"$f":"INDEX('الكشف المنفذ'!$C$2:$EJ$33,MATCH(استعلام!$A$2,'الكشف المنفذ'!$A$2:$A$33,0),MATCH(استعلام!$I46,'الكشف المنفذ'!$C$1:$EK$1,0))","v":0},"N116",{"$f":"INDEX('الكشف المنفذ'!$C$2:$EJ$33,MATCH(استعلام!$A$2,'الكشف المنفذ'!$A$2:$A$33,0),MATCH(استعلام!$K46,'الكشف المنفذ'!$C$1:$EK$1,0))","v":0}]
["M65",{"$f":"INDEX('الكشف المطلوب'!$C$2:$EJ$33,MATCH(استعلام!$A$2,'الكشف المطلوب'!$A$2:$A$33,0),MATCH(استعلام!$A47,'الكشف المطلوب'!$C$1:$EK$1,0))","v":0},"N46",{"$f":"INDEX('الكشف المطلوب'!$C$2:$EJ$33,MATCH(استعلام!$A$2,'الكشف المطلوب'!$A$2:$A$33,0),MATCH(استعلام!$C47,'الكشف المطلوب'!$C$1:$EK$1,0))","v":0},"N117",{"$f":"INDEX('الكشف المطلوب'!$C$2:$EJ$33,MATCH(استعلام!$A$2,'الكشف المطلوب'!$A$2:$A$33,0),MATCH(استعلام!$E47,'الكشف المطلوب'!$C$1:$EK$1,0))","v":0},"M65",{"$f":"INDEX('الكشف المنفذ'!$C$2:$EJ$33,MATCH(استعلام!$A$2,'الكشف المنفذ'!$A$2:$A$33,0),MATCH(استعلام!$G47,'الكشف المنفذ'!$C$1:$EK$1,0))","v":0},"N46",{"$f":"INDEX('الكشف المنفذ'!$C$2:$EJ$33,MATCH(استعلام!$A$2,'الكشف المنفذ'!$A$2:$A$33,0),MATCH(استعلام!$I47,'الكشف المنفذ'!$C$1:$EK$1,0))","v":0},"N117",{"$f":"INDEX('الكشف المنفذ'!$C$2:$EJ$33,MATCH(استعلام!$A$2,'الكشف المنفذ'!$A$2:$A$33,0),MATCH(استعلام!$K47,'الكشف المنفذ'!$C$1:$EK$1,0))","v":0}]
["M68",{"$f":"INDEX('الكشف المطلوب'!$C$2:$EJ$33,MATCH(استعلام!$A$2,'الكشف المطلوب'!$A$2:$A$33,0),MATCH(استعلام!$A48,'الكشف المطلوب'!$C$1:$EK$1,0))","v":10},"N47",{"$f":"INDEX('الكشف المطلوب'!$C$2:$EJ$33,MATCH(استعلام!$A$2,'الكشف المطلوب'!$A$2:$A$33,0),MATCH(استعلام!$C48,'الكشف المطلوب'!$C$1:$EK$1,0))","v":0},"N118",{"$f":"INDEX('الكشف المطلوب'!$C$2:$EJ$33,MATCH(استعلام!$A$2,'الكشف المطلوب'!$A$2:$A$33,0),MATCH(استعلام!$E48,'الكشف المطلوب'!$C$1:$EK$1,0))","v":0},"M68",{"$f":"INDEX('الكشف المنفذ'!$C$2:$EJ$33,MATCH(استعلام!$A$2,'الكشف المنفذ'!$A$2:$A$33,0),MATCH(استعلام!$G48,'الكشف المنفذ'!$C$1:$EK$1,0))","v":0},"N47",{"$f":"INDEX('الكشف المنفذ'!$C$2:$EJ$33,MATCH(استعلام!$A$2,'الكشف المنفذ'!$A$2:$A$33,0),MATCH(استعلام!$I48,'الكشف المنفذ'!$C$1:$EK$1,0))","v":0},"N118",{"$f":"INDEX('الكشف المنفذ'!$C$2:$EJ$33,MATCH(استعلام!$A$2,'الكشف المنفذ'!$A$2:$A$33,0),MATCH(استعلام!$K48,'الكشف المنفذ'!$C$1:$EK$1,0))","v":0}]
["M69",{"$f":"INDEX('الكشف المطلوب'!$C$2:$EJ$33,MATCH(استعلام!$A$2,'الكشف المطلوب'!$A$2:$A$33,0),MATCH(استعلام!$A49,'الكشف المطلوب'!$C$1:$EK$1,0))","v":8},"N51",{"$f":"INDEX('الكشف المطلوب'!$C$2:$EJ$33,MATCH(استعلام!$A$2,'الكشف المطلوب'!$A$2:$A$33,0),MATCH(استعلام!$C49,'الكشف المطلوب'!$C$1:$EK$1,0))","v":0},"N119",{"$f":"INDEX('الكشف المطلوب'!$C$2:$EJ$33,MATCH(استعلام!$A$2,'الكشف المطلوب'!$A$2:$A$33,0),MATCH(استعلام!$E49,'الكشف المطلوب'!$C$1:$EK$1,0))","v":15},"M69",{"$f":"INDEX('الكشف المنفذ'!$C$2:$EJ$33,MATCH(استعلام!$A$2,'الكشف المنفذ'!$A$2:$A$33,0),MATCH(استعلام!$G49,'الكشف المنفذ'!$C$1:$EK$1,0))","v":0},"N51",{"$f":"INDEX('الكشف المنفذ'!$C$2:$EJ$33,MATCH(استعلام!$A$2,'الكشف المنفذ'!$A$2:$A$33,0),MATCH(استعلام!$I49,'الكشف المنفذ'!$C$1:$EK$1,0))","v":0},"N119",{"$f":"INDEX('الكشف المنفذ'!$C$2:$EJ$33,MATCH(استعلام!$A$2,'الكشف المنفذ'!$A$2:$A$33,0),MATCH(استعلام!$K49,'الكشف المنفذ'!$C$1:$EK$1,0))","v":0}]
["M73",{"$f":"INDEX('الكشف المطلوب'!$C$2:$EJ$33,MATCH(استعلام!$A$2,'الكشف المطلوب'!$A$2:$A$33,0),MATCH(استعلام!$A50,'الكشف المطلوب'!$C$1:$EK$1,0))","v":15},"N52",{"$f":"INDEX('الكشف المطلوب'!$C$2:$EJ$33,MATCH(استعلام!$A$2,'الكشف المطلوب'!$A$2:$A$33,0),MATCH(استعلام!$C50,'الكشف المطلوب'!$C$1:$EK$1,0))","v":0},"N120",{"$f":"INDEX('الكشف المطلوب'!$C$2:$EJ$33,MATCH(استعلام!$A$2,'الكشف المطلوب'!$A$2:$A$33,0),MATCH(استعلام!$E50,'الكشف المطلوب'!$C$1:$EK$1,0))","v":0},"M73",{"$f":"INDEX('الكشف المنفذ'!$C$2:$EJ$33,MATCH(استعلام!$A$2,'الكشف المنفذ'!$A$2:$A$33,0),MATCH(استعلام!$G50,'الكشف المنفذ'!$C$1:$EK$1,0))","v":0},"N52",{"$f":"INDEX('الكشف المنفذ'!$C$2:$EJ$33,MATCH(استعلام!$A$2,'الكشف المنفذ'!$A$2:$A$33,0),MATCH(استعلام!$I50,'الكشف المنفذ'!$C$1:$EK$1,0))","v":0},"N120",{"$f":"INDEX('الكشف المنفذ'!$C$2:$EJ$33,MATCH(استعلام!$A$2,'الكشف المنفذ'!$A$2:$A$33,0),MATCH(استعلام!$K50,'الكشف المنفذ'!$C$1:$EK$1,0))","v":0}]
["M79",{"$f":"INDEX('الكشف المطلوب'!$C$2:$EJ$33,MATCH(استعلام!$A$2,'الكشف المطلوب'!$A$2:$A$33,0),MATCH(استعلام!$A51,'الكشف المطلوب'!$C$1:$EK$1,0))","v":0},"N53",{"$f":"INDEX('الكشف المطلوب'!$C$2:$EJ$33,MATCH(استعلام!$A$2,'الكشف المطلوب'!$A$2:$A$33,0),MATCH(استعلام!$C51,'الكشف المطلوب'!$C$1:$EK$1,0))","v":0},"N121",{"$f":"INDEX('الكشف المطلوب'!$C$2:$EJ$33,MATCH(استعلام!$A$2,'الكشف المطلوب'!$A$2:$A$33,0),MATCH(استعلام!$E51,'الكشف المطلوب'!$C$1:$EK$1,0))","v":0},"M79",{"$f":"INDEX('الكشف المنفذ'!$C$2:$EJ$33,MATCH(استعلام!$A$2,'الكشف المنفذ'!$A$2:$A$33,0),MATCH(استعلام!$G51,'الكشف المنفذ'!$C$1:$EK$1,0))","v":0},"N53",{"$f":"INDEX('الكشف المنفذ'!$C$2:$EJ$33,MATCH(استعلام!$A$2,'الكشف المنفذ'!$A$2:$A$33,0),MATCH(استعلام!$I51,'الكشف المنفذ'!$C$1:$EK$1,0))","v":0},"N121",{"$f":"INDEX('الكشف المنفذ'!$C$2:$EJ$33,MATCH(استعلام!$A$2,'الكشف المنفذ'!$A$2:$A$33,0),MATCH(استعلام!$K51,'الكشف المنفذ'!$C$1:$EK$1,0))","v":0}]

{"sheet":"الدار","index":3,"n_rows":12,"n_cols":10,"rows_kept":12,"cut":false,"hidden":false,"merged":[[11,1,13,5],[11,0,13,0],[11,6,13,6],[3,9,5,14],[2,1,2,5],[3,1,5,5],[7,1,9,5],[3,0,5,0],[3,6,5,6],[7,6,9,6],[7,0,9,0]]}
["رقم الدار","m1"]
[]
["رقم الفقرة","المواد المطلوبة",null,null,null,null,"الكمية"]
[1,"تجهيز المواد والمعدات والأيدي العاملة اللازمة لتجهيز وتثبيت زجاج سمك 4ملم, ويتضمن العمل ازالة الزجاج المتضرر ورفع الانقاض وكل المتطلبات لانجاز العمل حسب توجيهات المهندس المشرف على أن يتم أستخدام العمال المحليين وبموجب الأجور في السوق المحلية.",null,null,null,null,7,null,null,"بعض النماذج المطلوبة ، فعند كتابة رقم الدار تأتي البيانات الخاصة باحتياجات رقم الدار من المواد المطلوبة والكمية"]
[]
[]
[]
[2,"تجهيز المواد و المعدات والأيدي العاملة اللازمة لتجهيز وتبديل باب خشب (1*2.1)م كبس صاج وجهين (سمك الطبقة لا يقل عن 5ملم) والحشوة الداخلية لا تقل عن 50%, شاملا العمل ازالة الاطار القديم (الجرجوبة) و تجهيز وتثبيت اطار خشب جديد مع الصبغ ثلاث طبقات للباب والاطار مع تجهيز وتثبيت كيلون منشأ تركي نوعية جيدة, مع اعادة الانهاءات للجدران والارضية كما كانت عليها و حسب توجيهات المهندس المشرف على أن يتم أستخدام العمال المحليين وبموجب الأجور في السوق المحلية.",null,null,null,null,2]
[]
[]
[]
[9,"تجهيز المواد والمعدات والأيدي العاملة اللازمة لاعمال انهاءات السقوف والجدران الداخلية, شاملا العمل قشط وازالة المساحات المتضررة ورفع الانقاض واعادة السطار والبياض من جديد بالجص والبورك وكل المتطلبات لانجاز العمل حسب توجيهات المهندس المشرف على أن يتم أستخدام العمال المحليين وبموجب الأجور في السوق المحلية.",null,null,null,null,50]

{"sheet":"اسعار المواد","index":4,"n_rows":86,"n_cols":3,"rows_kept":86,"cut":false,"hidden":true,"merged":[]}
["اسم المادة","سعر الوحدة","الوحدة"]
["جام",2000,"متر"]
["كاشي",7000,"متر"]
["أنبوب ماء",4000,"متر"]
["أنبوب مجاري",5000,"متر"]
["سلك كهرباء",1000,"متر"]
["بلك سويج",1500,"عدد"]
["باب خشب",40000,"عدد"]
["اجرة عامل الزجاج",17000,"يومية"]
["اجرة عامل الماء",15000,"يومية"]
["لوحة توزيع كهرباء",45000,"عدد"]
["كيبل كهرباء",3500,"متر"]
["سمنت مقاوم",4000,"عدد"]
["سمنت عادي",3250,"عدد"]
["بلوك عادي",600,"عدد"]
["بلوك مجوف",650,"عدد"]
["بلوك ضاغط",700,"عدد"]
["مادة1",1000,"عدد"]
["مادة2",1000,"عدد"]
["مادة3",1000,"عدد"]
["مادة4",1000,"عدد"]
["مادة5",1000,"عدد"]
["مادة6",1000,"عدد"]
["مادة7",1000,"عدد"]
["مادة8",1000,"عدد"]
["مادة9",1000,"عدد"]
["مادة10",1000,"عدد"]
["مادة11",1000,"عدد"]
["مادة12",1000,"عدد"]
["مادة13",1000,"عدد"]
["مادة14",1000,"عدد"]
["مادة15",1000,"عدد"]
["مادة16",1000,"عدد"]
["مادة17",1000,"عدد"]
["مادة18",1000,"عدد"]
["مادة19",1000,"عدد"]
["مادة20",1000,"عدد"]
["مادة21",1000,"عدد"]
["مادة22",1000,"عدد"]
["مادة23",1000,"عدد"]
["مادة24",1000,"عدد"]
["مادة25",1000,"عدد"]
["مادة26",1000,"عدد"]
["مادة27",1000,"عدد"]
["مادة28",1000,"عدد"]
["مادة29",1000,"عدد"]
["مادة30",1000,"عدد"]
["مادة31",1000,"عدد"]
["مادة32",1000,"عدد"]
["مادة33",1000,"عدد"]
["مادة34",1000,"عدد"]
["مادة35",1000,"عدد"]
["مادة36",1000,"عدد"]
["مادة37",1000,"عدد"]
["مادة38",1000,"عدد"]
["مادة39",1000,"عدد"]
["مادة40",1000,"عدد"]
["مادة41",1000,"عدد"]
["مادة42",1000,"عدد"]
["مادة43",1000,"عدد"]
["مادة44",1000,"عدد"]
["مادة45",1000,"عدد"]
["مادة46",1000,"عدد"]
["مادة47",1000,"عدد"]
["مادة48",1000,"عدد"]
["مادة49",1000,"عدد"]
["مادة50",1000,"عدد"]
["مادة51",1000,"عدد"]
["مادة52",1000,"عدد"]
["مادة53",1000,"عدد"]
["مادة54",1000,"عدد"]
["مادة55",1000,"عدد"]
["مادة56",1000,"عدد"]
["مادة57",1000,"عدد"]
["مادة58",1000,"عدد"]
["مادة59",1000,"عدد"]
["مادة60",1000,"عدد"]
["مادة61",1000,"عدد"]
["مادة62",1000,"عدد"]
["مادة63",1000,"عدد"]
["مادة64",1000,"عدد"]
["مادة65",1000,"عدد"]
["مادة66",1000,"عدد"]
["مادة67",1000,"عدد"]
["مادة68",1000,"عدد"]
["مادة69",1000,"عدد"]